Cogmind - Beta 9.3 @@@ ROGUE MODE // 2020.01.31 @ 01:11:02 // Winter2019/RPGLIKE Player: badjay Result: Escaped singularity! Performance ------------- Evolutions (9) 4500 Regions Visited (37) 7400 Robots Destroyed (831) 4155 Value Destroyed (49337) 49337 Prototype IDs (228) 4560 Alien Tech Used (14) 2800 Bonus (84706) 84706 TOTAL SCORE: 157458 Bonus ------- High Alert Combat Kills 15358 Follower Combat Kills 236 Met Data Miner 300 Used Data Conduit 3000 Met Imprinter 300 Met Zhirov 300 Met Warlord at Base 500 MAIN.C Attacked Warlord 500 Warlord Defense Kill 724 Found Hidden Lab 3000 Decrypted A0 Command 9000 Met Warlord at Research 2000 Hacked God Mode 5000 Pursued by Intercept 4500 Destroyed MAIN.C Guards 500 Met MAIN.C 5000 Destroyed MAIN.C Shell 5000 Destroyed MAIN.C 10000 Met Architect 300 Destroyed A8 300 Destroyed A6 400 Destroyed A4 700 Destroyed A2 1000 Destroyed Architect 15000 Win 3000 Friendly Fire -1212 Cogmind --------- Core Integrity 551/600 Matter 529/800 Energy 391/490 System Corruption 6% Temperature Cool (8) Movement Flying (17) Location Near Former Tau Ceti IV Parts ------- > --- POWER (2) -------- Cooled Ion Engine Cooled Deuterium Engine > --- PROPULSION (2) --- Experimental Q-thruster Experimental Q-thruster > --- UTILITY (14) ----- Experimental Matter Compressor Experimental Targeting Computer Experimental Targeting Computer Experimental Target Analyzer Experimental Core Analyzer Experimental Armor Integrity Analyzer Recoil Nullifier Precision Matter Filter Improved Kinecellerator Experimental Weapon Cycler Advanced Reaction Control System Experimental Phase Shifter Quantum Router > --- WEAPON (8) ------- Linked Autogun Linked Autogun Linked Autogun Linked Autogun > --- INVENTORY (4) ---- Desublimator Improved Energy Mantle Sigix Broadsword Peak State ------------ > --- POWER ------------ Cooled Ion Engine Cooled Deuterium Engine > --- PROPULSION ------- Electron Diverter Cooled Q-thruster > --- UTILITY ---------- Desublimator Experimental Targeting Computer Experimental Targeting Computer Experimental Target Analyzer Experimental Core Analyzer Experimental Armor Integrity Analyzer Recoil Nullifier Precision Matter Filter Improved Kinecellerator Experimental Weapon Cycler Advanced Reaction Control System Experimental Phase Shifter Quantum Router > --- WEAPON ----------- Linked Autogun Linked Autogun Linked Autogun Sigix Broadsword > --- INVENTORY -------- Protomatter Experimental Matter Compressor Linked Autogun [Rating: 217] Favorites ----------- Power Cooled Ion Engine Engine Cooled Ion Engine Propulsion Diametric Drive Flight Unit Diametric Drive Utility Experimental Targeting Computer Device Improved Kinecellerator Storage Experimental Matter Compressor Processor Experimental Targeting Computer Hackware Quantum Router Protection Medium Regenerative Plating Weapon Precision Assault Rifle Energy Gun EM Shotgun Energy Cannon Warp Cannon Ballistic Gun Precision Assault Rifle Ballistic Cannon Mini Assault Cannon Special Weapon Guided Remote Datajack Impact Weapon Core Stripper Slashing Weapon Sigix Broadsword Piercing Weapon Force Lance Build | -11 -10 -10 -9 -9 -8 -8 -7 -7 -7 -7 -7 -7 -6 -6 -6 -6 -6 -5 -5 -5 -5 -5 -4 -4 -4 -4 -4 -3 -3 -3 -3 -2 -2 -2 -1 -1 -1 ------- Run | Scr Mat Min Mat Min Mat Sto Fac Was Fac Low Low Dat Pro Fac Low Low Zio Pro Fac Upp Upp War Pro Fac Upp Upp Zhi Pro Res Arm Lab Res Qua Sec Acc Com Ac0 Slots Evolved 21 | . 2 . 5 . 4 . 3 . . . . . 1 . . . . . 1 . . 1 . . . . . . . 2 . . . . 2 . . Power 1 | . . . 1 . . . . . . . . . . . . . . . . . . . . . . . . . . . . . . . . . . Propulsion 1 | . 1 . . . . . . . . . . . . . . . . . . . . . . . . . . . . . . . . . . . . Utility 12 | . . . 3 . 3 . 3 . . . . . 1 . . . . . 1 . . 1 . . . . . . . . . . . . . . . Weapon 7 | . 1 . 1 . 1 . . . . . . . . . . . . . . . . . . . . . . . . 2 . . . . 2 . . Parts Attached 195 | . 8 3 13 . 12 8 33 2 7 . . 3 1 6 1 . 2 . 3 1 . 1 1 6 . . 1 . 3 2 9 2 13 20 2 6 26 Power 11 | . 1 1 3 . . . 3 . . . . . . . . . . . . . . . . . . . . . 1 . . . . . . . 2 Engine 11 | . 1 1 3 . . . 3 . . . . . . . . . . . . . . . . . . . . . 1 . . . . . . . 2 Core . | . . . . . . . . . . . . . . . . . . . . . . . . . . . . . . . . . . . . . . Reactor . | . . . . . . . . . . . . . . . . . . . . . . . . . . . . . . . . . . . . . . Propulsion 25 | . 3 . 4 . 2 . 6 2 2 . . . . 1 . . . . . . . 1 . . . . . . 1 . . . . 1 . . 2 Treads . | . . . . . . . . . . . . . . . . . . . . . . . . . . . . . . . . . . . . . . Leg . | . . . . . . . . . . . . . . . . . . . . . . . . . . . . . . . . . . . . . . Wheel . | . . . . . . . . . . . . . . . . . . . . . . . . . . . . . . . . . . . . . . Hover . | . . . . . . . . . . . . . . . . . . . . . . . . . . . . . . . . . . . . . . Flight 25 | . 3 . 4 . 2 . 6 2 2 . . . . 1 . . . . . . . 1 . . . . . . 1 . . . . 1 . . 2 Utility 77 | . . 1 3 . 3 . 15 . 3 . . 3 1 4 1 . 2 . 2 1 . . 1 5 . . 1 . 1 1 3 . 3 8 . 1 14 Device 50 | . . . . . 2 . 6 . 2 . . . 1 3 1 . . . . 1 . . 1 4 . . 1 . 1 1 1 . 3 8 . 1 13 Storage 1 | . . . . . . . . . . . . . . . . . . . . . . . . . . . . . . . . . . . . . 1 Processor 19 | . . 1 3 . 1 . 7 . 1 . . . . 1 . . 2 . 2 . . . . 1 . . . . . . . . . . . . . Hackware 6 | . . . . . . . 2 . . . . 3 . . . . . . . . . . . . . . . . . . 1 . . . . . . Protection 1 | . . . . . . . . . . . . . . . . . . . . . . . . . . . . . . . 1 . . . . . . Artifact . | . . . . . . . . . . . . . . . . . . . . . . . . . . . . . . . . . . . . . . Weapon 82 | . 4 1 3 . 7 8 9 . 2 . . . . 1 . . . . 1 . . . . 1 . . . . . 1 6 2 10 11 2 5 8 Energy Gun 24 | . 4 1 3 . 7 5 4 . . . . . . . . . . . . . . . . . . . . . . . . . . . . . . Energy Cannon 6 | . . . . . . 1 . . . . . . . . . . . . . . . . . . . . . . . . 3 . 2 . . . . Ballistic Gun 32 | . . . . . . . 4 . 2 . . . . 1 . . . . 1 . . . . 1 . . . . . 1 1 1 5 7 1 3 4 Ballistic Cannon 4 | . . . . . . 2 1 . . . . . . . . . . . . . . . . . . . . . . . . . . . . . 1 Launcher . | . . . . . . . . . . . . . . . . . . . . . . . . . . . . . . . . . . . . . . Special Weapon 2 | . . . . . . . . . . . . . . . . . . . . . . . . . . . . . . . 1 1 . . . . . Impact Weapon 1 | . . . . . . . . . . . . . . . . . . . . . . . . . . . . . . . . . 1 . . . . Slashing Weapon 12 | . . . . . . . . . . . . . . . . . . . . . . . . . . . . . . . . . 2 4 1 2 3 Piercing Weapon 1 | . . . . . . . . . . . . . . . . . . . . . . . . . . . . . . . 1 . . . . . . Special Melee Weapon . | . . . . . . . . . . . . . . . . . . . . . . . . . . . . . . . . . . . . . . Unidentified Prototypes 35 | . . . . . 2 2 2 1 . . . 3 . 1 . . . . . . . . . . . . 1 . . 1 5 . 3 7 . . 7 Parts Lost 1 | . . . . . . . . . . . . . . . . . . . . . . . . . . . . . . 1 . . . . . . . Power . | . . . . . . . . . . . . . . . . . . . . . . . . . . . . . . . . . . . . . . Propulsion . | . . . . . . . . . . . . . . . . . . . . . . . . . . . . . . . . . . . . . . Utility 1 | . . . . . . . . . . . . . . . . . . . . . . . . . . . . . . 1 . . . . . . . Weapon . | . . . . . . . . . . . . . . . . . . . . . . . . . . . . . . . . . . . . . . Highest Loss Streak 1 | . . . . . . . . . . . . . . . . . . . . . . . . . . . . . . 1 . . . . . . . Average Slot Usage (%) 92 | . 57 93 99 100 99 99 98 98 100 100 100 100 100 98 93 94 94 94 92 91 95 94 90 91 90 90 90 90 90 89 82 85 85 85 84 84 83 Engine 10 | . 10 16 16 18 14 13 10 11 11 11 11 11 10 10 10 10 10 10 10 10 10 10 9 9 9 9 9 9 9 8 8 8 8 8 8 8 7 Flight 11 | . 28 33 24 18 14 13 11 9 11 11 11 11 10 10 10 10 10 10 10 10 10 9 9 9 9 9 9 9 9 8 8 8 8 8 8 8 7 Device 19 | . . . . . 6 13 16 27 27 27 27 24 13 16 20 21 21 21 20 21 25 25 23 27 28 28 28 28 28 27 23 26 25 25 24 24 26 Processor 24 | . . 9 28 36 37 33 31 27 27 27 27 27 26 25 21 21 21 21 20 20 20 20 19 22 23 23 23 23 23 22 21 21 21 21 20 20 19 Hackware 6 | . . . . . . . 4 . . . . 2 15 15 15 15 15 15 15 15 15 15 14 10 9 9 9 9 9 8 7 8 8 8 8 8 5 Energy Gun 6 | . 17 33 28 27 24 25 14 5 1 . . . . . . . . . . . . . . . . . . . . . . . . . . . . Ballistic Gun 11 | . . . . . . . 6 11 17 22 22 22 21 19 15 15 15 15 15 15 15 15 14 10 9 9 9 9 9 9 10 12 12 12 14 15 15 Naked Turns 84 | . 84 . . . . . . . . . . . . . . . . . . . . . . . . . . . . . . . . . . . . Heaviest Build 100 | . 7 7 25 25 33 36 45 45 45 45 45 45 41 48 48 48 48 48 48 50 50 50 53 58 58 58 58 58 60 71 71 71 71 71 83 83 100 Greatest Support 112 | 3 8 8 32 32 37 37 45 45 50 48 48 48 48 51 51 51 51 51 51 51 51 52 52 62 62 62 62 62 67 77 77 77 77 112 112 112 112 Greatest Overweight (x) 1 | . . . . . . . 1 1 . . . . . 1 . . . . 1 . . . 1 1 . . . . . . . . 1 1 . . . Average Overweight (x) . | . . . . . . . . . . . . . . . . . . . . . . . . . . . . . . . . . . . . . . Largest Inventory Capacity 4 | . . . . 2 2 2 2 2 2 2 2 2 2 2 2 2 2 2 2 2 2 2 2 2 2 2 2 2 2 2 3 3 3 3 3 4 4 Average Capacity 2 | . . . . . 2 2 2 2 2 2 2 2 2 2 2 2 2 2 2 2 2 2 2 2 2 2 2 2 2 2 2 3 3 3 3 3 4 Most Carried 4 | . . . . 2 2 2 2 2 2 2 2 2 2 2 2 2 2 2 2 2 2 2 2 2 2 2 2 2 2 2 3 3 3 3 3 4 4 Average Carried 1 | . . . . . 1 1 1 1 1 2 2 1 1 1 1 2 1 2 1 2 2 2 1 1 2 2 1 2 2 1 1 2 2 2 2 3 3 Final Capacity 4 | . . . . 2 2 2 2 2 2 2 2 2 2 2 2 2 2 2 2 2 2 2 2 2 2 2 2 2 2 2 3 3 3 3 3 4 4 Final Carried 4 | . . . . 2 2 2 . 2 2 2 2 2 2 1 2 2 2 2 2 2 2 2 2 2 2 2 2 2 2 1 2 3 3 3 3 3 4 Class Distribution -------------------- 51% | Wizard-Sprinter 30% | Hacker-Sprinter 7% | Hacker-Mutant 5% | Commander-Sprinter Dominant Class ---------------- Hacker-Mutant | -10/Materials Hacker-Mutant | -10/Mines Hacker-Mutant | -9/Materials Hacker-Sprinter | -9/Mines Hacker-Sprinter | -8/Materials Hacker-Sprinter | -8/Storage Commander-Sprinter | -7/Factory Hacker-Sprinter | -7/Waste Hacker-Sprinter | -7/Factory Hacker-Sprinter | -7/Lower Caves Hacker-Sprinter | -7/Lower Caves Hacker-Sprinter | -7/Data Miner Wizard-Sprinter | -6/Proximity Caves Wizard-Sprinter | -6/Factory Wizard-Sprinter | -6/Lower Caves Wizard-Sprinter | -6/Lower Caves Wizard-Sprinter | -6/Zion Wizard-Sprinter | -5/Proximity Caves Wizard-Sprinter | -5/Factory Wizard-Sprinter | -5/Upper Caves Wizard-Sprinter | -5/Upper Caves Wizard-Sprinter | -5/Warlord Wizard-Sprinter | -4/Proximity Caves Wizard-Sprinter | -4/Factory Wizard-Sprinter | -4/Upper Caves Wizard-Sprinter | -4/Upper Caves Wizard-Sprinter | -4/Zhirov Wizard-Sprinter | -3/Proximity Caves Wizard-Sprinter | -3/Research Wizard-Sprinter | -3/Armory Wizard-Sprinter | -3/Lab Wizard-Sprinter | -2/Research Wizard-Sprinter | -2/Quarantine Wizard-Sprinter | -2/Section 7 Wizard-Sprinter | -1/Access Wizard-Sprinter | -1/Command Hacker-Sprinter | -1/Access_0 Resources | -11 -10 -10 -9 -9 -8 -8 -7 -7 -7 -7 -7 -7 -6 -6 -6 -6 -6 -5 -5 -5 -5 -5 -4 -4 -4 -4 -4 -3 -3 -3 -3 -2 -2 -2 -1 -1 -1 ----------- Run | Scr Mat Min Mat Min Mat Sto Fac Was Fac Low Low Dat Pro Fac Low Low Zio Pro Fac Upp Upp War Pro Fac Upp Upp Zhi Pro Res Arm Lab Res Qua Sec Acc Com Ac0 Matter Collected 20334 | 200 80 30 130 . 120 104 746 . 594 102 112 134 416 1162 376 443 830 342 916 342 428 190 342 983 455 214 140 499 630 1180 . 465 767 2019 1160 1376 2307 Remotely . | . . . . . . . . . . . . . . . . . . . . . . . . . . . . . . . . . . . . . . Salvage Created 42165 | . 308 135 988 130 1683 1973 2258 . 962 156 436 144 649 1603 551 901 1163 952 1310 513 831 390 517 1362 795 338 179 725 1682 2875 . 837 1661 4054 2652 2773 3679 Parts 2198 | . 31 8 63 21 108 61 129 . 83 14 18 25 32 87 35 31 60 35 68 16 33 13 26 94 34 15 4 41 78 152 8 30 70 167 144 106 258 Haulers Intercepted 25 | . . . 3 . 6 1 6 . 1 . . . . 1 . . . . 2 . . . . 1 . . . . 1 . . 2 . . 1 . . Recyclers Shooed 1 | . . . . . . . . . . . . . . . . . . . . . . . . . . . . . . . . . . 1 . . . Parts Field Recycled . | . . . . . . . . . . . . . . . . . . . . . . . . . . . . . . . . . . . . . . Retrieved Matter . | . . . . . . . . . . . . . . . . . . . . . . . . . . . . . . . . . . . . . . Parts Self-Destructed 363 | . . . . . . . . . . 14 6 . 32 . 36 31 . 35 . 16 33 41 26 . 33 15 4 41 . . . . . . . . . Prevented 10 | . . . . . . . . . . . . . . . . . . . . . . 10 . . . . . . . . . . . . . . . Kills | -11 -10 -10 -9 -9 -8 -8 -7 -7 -7 -7 -7 -7 -6 -6 -6 -6 -6 -5 -5 -5 -5 -5 -4 -4 -4 -4 -4 -3 -3 -3 -3 -2 -2 -2 -1 -1 -1 ------- Run | Scr Mat Min Mat Min Mat Sto Fac Was Fac Low Low Dat Pro Fac Low Low Zio Pro Fac Upp Upp War Pro Fac Upp Upp Zhi Pro Res Arm Lab Res Qua Sec Acc Com Ac0 Combat Hostiles Destroyed 683 | . 14 6 19 5 33 28 47 . 32 8 9 4 15 33 13 14 9 12 19 9 16 6 10 30 14 6 . 16 19 54 1 3 20 50 44 20 45 Guns 657 | . 14 5 18 4 29 23 42 . 23 8 9 4 15 33 13 14 9 12 19 9 16 6 10 30 14 6 . 16 19 54 1 3 20 50 44 20 45 Cannons 11 | . . . . . . . 2 . 9 . . . . . . . . . . . . . . . . . . . . . . . . . . . . AOE 10 | . . . 1 1 3 4 1 . . . . . . . . . . . . . . . . . . . . . . . . . . . . . . Classes Destroyed 24 | . 3 1 4 . 5 . . . 1 . 1 . 1 . . . 1 . . . . 2 . . 1 . . . . 1 . . 1 2 . . . Worker 16 | . . . 1 . . . 2 . . . . . . 2 . . . . 2 . . . . . . . . . . . . 2 1 . 4 2 . Builder 11 | . . 1 1 . 2 1 . . 1 . . . . . . . . . . . . . . 3 . . . . . . . . . 2 . . . Hauler 25 | . . . 3 . 6 1 6 . 1 . . . . 1 . . . . 2 . . . . 1 . . . . 1 . . 2 . . 1 . . Recycler 6 | . . . 1 . . 2 1 . . . . . . . . . . . . . . . . 1 . . . . . . . . . . 1 . . Operator 6 | . . . . . 2 . . . 1 . . . . . . . . . . . . . . . . . . . . . . . 1 1 1 . . Watcher 54 | . 1 . 3 . 3 2 4 . 2 . . . . 4 . . . . 8 . . . . 2 . . . . 4 5 . 4 2 3 6 1 . Swarmer 114 | . 8 3 3 . 7 1 14 . 9 3 . . 5 7 1 . . . . 4 1 . 2 4 7 . . 4 . 7 . . . 1 18 5 . Saboteur 1 | . . . . . . . . . . . . . . . . . . . . . . . . . . . . . . 1 . . . . . . . Grunt 221 | . 6 2 10 3 12 18 21 . 11 4 1 . 6 14 5 7 . 9 12 2 10 4 3 2 2 4 . 7 8 13 . 3 3 11 5 3 . Brawler 15 | . . . . . 2 1 1 . . . . . 1 1 1 3 . . 1 . 2 . . . . . . 1 1 . . . . . . . . Duelist 19 | . . . . . 1 1 2 . . . . . . 2 2 1 . 1 . . . . . . 2 . . 1 . 6 . . . . . . . Protector 4 | . . . . . 1 . 1 . . . . . . . . . . . . . . . . . . . . . . 2 . . . . . . . Researcher 2 | . . . . . . . . . . . . . . . . . . . . . . . . . . . . . . . . . 1 1 . . . Sentry 79 | . . . 6 2 8 7 7 . 6 1 1 . 2 3 2 2 . 1 2 1 1 . 1 5 1 . . 2 4 9 . . . 4 . 1 . Demolisher 5 | . . . . . . . . . . . . . . . . . . . . . . 1 . . . . . . . 4 . . . . . . . Specialist 3 | . . . . . . . . . . . . . . . . . . . . . . 1 . . . . . . . 2 . . . . . . . Hunter 41 | . . . . . 2 . 1 . 5 . . . . . 1 1 . . 1 2 2 . 2 2 2 2 . . . 2 . . . 4 12 . . Programmer 35 | . . . . . . . . . 1 . 1 . . . . . . . 1 . . . 2 6 . . . . 4 2 . . 7 6 1 4 . Behemoth 10 | . . . . . . . . . . . . . 1 . 1 . . 1 . . . . . 1 . . . 1 1 1 . . . 2 1 . . S7 Guard 1 | . . . . . . . . . . . . . . . . . . . . . . . . . . . . . . . . . . 1 . . . M Guard 2 | . . . . . . . . . . . . . . . . . . . . . . . . . . . . . . . . . . . . 2 . Enhanced Grunt 27 | . . . . . . . . . . . . 4 . . . . . . . . . . . . . . . . . . . . . . . . 23 Enhanced Sentry 1 | . . . . . . . . . . . . . . . . . . . . . . . . . . . . . . . . . . . . . 1 Enhanced Hunter 6 | . . . . . . . . . . . . . . . . . . . . . . . . . . . . . . . . . . . . . 6 Enhanced Programmer 10 | . . . . . . . . . . . . . . . . . . . . . . . . . . . . . . . . . . . . . 10 Tracker 32 | . . . . . . . . . . . . . . 3 . . . . 1 . . . . 5 . . . . 1 3 . . 5 9 5 . . Combat Programmer 28 | . . . . . . . . . . . . . . 3 . . . . 1 . . . . 5 . . . . . 2 . . 5 8 2 2 . Executioner 2 | . . . . . . . . . . . . . . . . . . . . . . . . . . . . . . . . . . 2 . . . Alpha 7 3 | . . . . . . . . . . . . . . . . . . . . . . . . . . . . . . . . . . 2 . 1 . Zionite 21 | . . . . . . . . . . . . . . . . . 21 . . . . . . . . . . . . . . . . . . . . Tinkerer 1 | . . . . . . . . . . . . . . . . . . . . . . . . . 1 . . . . . . . . . . . . Wasp 1 | . . . . . . . . . . . . . . . . . . . . . . 1 . . . . . . . . . . . . . . . Thug 3 | . . . . . . . . . . . 1 . . . . . 1 . . . . . . . . . . . . . . 1 . . . . . Savage 1 | . . . . . . . . . . . 1 . . . . . . . . . . . . . . . . . . . . . . . . . . Butcher 3 | . . . . . . . . . . . 3 . . . . . . . . . . . . . . . . . . . . . . . . . . Martyr 3 | . . . . . . . . . . . . . . . . . . . . . . . . . . . . . . . . 1 . . . 2 . Marauder 2 | . . . . . . . . . . . . . . . . . 2 . . . . . . . . . . . . . . . . . . . . Mutant 5 | . . . . . . . . . . . 1 . . . . . 4 . . . . . . . . . . . . . . . . . . . . Best Kill Streak 35 | . 3 3 5 3 8 12 9 . 14 4 6 5 10 6 8 9 18 7 9 9 6 6 7 17 12 4 . 10 12 16 1 8 7 12 35 9 12 Combat Bots Only 28 | . 3 2 3 3 7 10 7 . 11 4 6 4 10 5 8 9 5 7 8 4 6 6 7 13 12 4 . 10 6 15 1 2 6 8 28 7 12 Max Kills in Single Turn 4 | . 1 2 2 2 3 3 3 . 2 3 1 1 2 2 2 1 3 2 2 2 2 2 1 2 2 1 . 1 2 2 1 2 4 3 4 4 3 Gunslinging 2 | . . 1 1 1 2 1 2 . 1 2 . . 1 1 . . . 1 . 1 1 1 . . 1 . . . . 1 . . 1 1 2 2 2 Exploded 2 | . . . 1 1 1 2 1 . . . . . . . . . . . . . . . . . . . . . . . . . . . . . . Melee . | . . . . . . . . . . . . . . . . . . . . . . . . . . . . . . . . . . . . . . Uniques/NPCs Destroyed 10 | . . 1 . . . . . . . . . 1 . . . . 1 . . . . . . . . . . . . . 1 . . . . 1 5 YI-UF0 (-10/Mines) Data Miner (-7/Data Miner) Imprinter (-6/Zion) 12-ASH (-6/Zion) A5 (-3/Lab) MAIN.C Shell (-1/Command) MAIN.C (-1/Command) A8 (-1/Access_0) A6 (-1/Access_0) A2 (-1/Access_0) A4 (-1/Access_0) Architect (-1/Access_0) Combat | -11 -10 -10 -9 -9 -8 -8 -7 -7 -7 -7 -7 -7 -6 -6 -6 -6 -6 -5 -5 -5 -5 -5 -4 -4 -4 -4 -4 -3 -3 -3 -3 -2 -2 -2 -1 -1 -1 -------- Run | Scr Mat Min Mat Min Mat Sto Fac Was Fac Low Low Dat Pro Fac Low Low Zio Pro Fac Upp Upp War Pro Fac Upp Upp Zhi Pro Res Arm Lab Res Qua Sec Acc Com Ac0 Damage Taken 17356 | . 353 411 703 97 827 1077 1188 . 751 132 89 499 472 1876 148 145 402 214 666 247 341 28 183 1382 91 123 . 108 203 1007 25 35 398 1394 499 250 992 Core 14073 | . 302 331 584 78 662 884 943 . 608 109 70 405 375 1500 116 120 330 175 545 203 276 22 143 1107 76 104 . 84 168 836 20 26 321 1128 402 198 822 Absorbed by Shields 234 | . . . . . . . . . . . . . . . . . . . . . . . . . . . . . . . . . . . . . 234 Redirected to Core 11608 | . 141 255 409 62 561 668 811 . 470 79 58 362 355 1361 116 96 253 140 448 151 232 22 143 1003 48 69 . 84 127 620 20 26 280 962 354 198 624 Core Remaining (%) 90 | 100 . 56 . 100 . 67 . . . . . . 100 . . . . 100 . . . . 100 . . . . 100 . . 100 . . 79 . . 91 Volleys Fired 1528 | . 47 20 52 8 59 41 81 . 65 9 14 14 25 78 28 24 45 19 52 17 24 10 19 76 25 15 5 35 48 114 11 24 48 119 64 41 152 Largest 4 | . 2 2 3 3 4 4 4 . 4 4 4 4 4 4 3 3 3 3 3 3 3 3 3 3 2 2 2 2 2 3 2 3 3 3 4 4 4 Hottest 195 | . 80 80 135 135 195 195 195 . 132 112 112 112 112 112 86 86 86 86 86 86 86 86 86 86 60 60 60 60 60 90 60 90 100 90 120 120 120 Shots Fired 4383 | . 52 40 120 24 185 152 320 . 230 36 56 55 100 241 53 71 135 57 148 51 71 30 57 170 50 31 10 70 96 232 22 39 118 322 228 162 549 Gun 4326 | . 52 40 120 24 185 148 309 . 193 36 56 55 100 241 53 71 135 57 148 51 71 30 57 170 50 31 10 70 96 232 22 36 116 322 228 162 549 Cannon 54 | . . . . . . 4 11 . 37 . . . . . . . . . . . . . . . . . . . . . . . 2 . . . . Launcher . | . . . . . . . . . . . . . . . . . . . . . . . . . . . . . . . . . . . . . . Special 3 | . . . . . . . . . . . . . . . . . . . . . . . . . . . . . . . . 3 . . . . . Kinetic 3604 | . . . . . . 4 115 . 230 36 56 55 100 241 53 71 135 57 148 51 71 30 57 170 50 31 10 70 96 232 22 36 116 322 228 162 549 Thermal 100 | . . . . . . . 98 . . . . . . . . . . . . . . . . . . . . . . . . . 2 . . . . Explosive . | . . . . . . . . . . . . . . . . . . . . . . . . . . . . . . . . . . . . . . Electromagnetic 676 | . 52 40 120 24 185 148 107 . . . . . . . . . . . . . . . . . . . . . . . . . . . . . . Robot Hit Streak 111 | . 14 20 27 28 75 48 39 . 40 19 29 23 64 41 64 35 58 62 38 23 70 28 45 67 27 23 21 45 53 68 89 30 69 111 49 64 65 Robot Miss Streak 5 | . 5 2 2 1 1 2 2 . 4 1 2 1 1 1 1 1 1 1 1 2 1 1 1 2 1 1 . 1 1 3 1 1 1 2 2 1 2 Penetration Max . | . . . . . . . . . . . . . . . . . . . . . . . . . . . . . . . . . . . . . . Secondary Targets 134 | . . 1 5 1 8 5 10 . 3 4 . 1 5 6 1 5 5 3 4 1 7 2 1 3 4 1 . 2 2 10 . 1 3 4 12 4 10 Max Gunslinging Chain 3 | . . 1 1 1 2 1 3 . 1 2 . 1 1 1 1 1 1 1 1 1 1 1 1 1 1 1 . 1 1 1 . 1 1 1 2 2 1 Shots Hit Robots 3633 | . 33 32 94 19 156 110 238 . 165 30 43 53 82 188 49 58 106 53 109 41 61 26 46 143 42 28 9 63 88 204 22 35 102 274 178 171 482 Core Hits 2551 | . 19 10 61 11 112 79 129 . 64 16 21 26 38 91 29 35 54 33 74 21 41 22 31 112 36 14 9 48 76 187 22 30 75 219 155 134 417 Critical Hits 507 | . . . . . 1 2 6 . 14 1 3 2 5 14 6 2 10 3 11 3 9 3 11 26 9 7 1 12 17 53 5 9 28 63 39 35 97 Critical Kills 138 | . . . . . . 2 2 . 5 1 . 1 1 6 1 . 2 1 3 2 5 1 2 5 3 4 1 2 5 22 . 3 6 14 12 4 22 Critical Parts Destroyed 269 | . . . . . 1 . 2 . 6 . 2 . 2 6 4 2 7 2 6 1 3 . 8 13 5 3 . 9 9 23 5 6 13 37 20 21 53 Melee Attacks 50 | . . . . . . . . . . . . . . . . . . . . . . . . . . . . . . . 5 . 1 4 4 29 7 Impact . | . . . . . . . . . . . . . . . . . . . . . . . . . . . . . . . . . . . . . . Slashing 45 | . . . . . . . . . . . . . . . . . . . . . . . . . . . . . . . . . 1 4 4 29 7 Piercing 5 | . . . . . . . . . . . . . . . . . . . . . . . . . . . . . . . 5 . . . . . . Sneak Attacks . | . . . . . . . . . . . . . . . . . . . . . . . . . . . . . . . . . . . . . . Combat Hostiles . | . . . . . . . . . . . . . . . . . . . . . . . . . . . . . . . . . . . . . . Follow-up Attacks . | . . . . . . . . . . . . . . . . . . . . . . . . . . . . . . . . . . . . . . Damage Inflicted 128834 | . 467 451 1716 296 3148 2770 5112 . 3394 538 936 969 1840 4510 1824 1767 3322 1519 3899 1101 1764 881 1459 5941 1681 803 382 2725 4125 9278 738 1524 5082 11751 8402 13655 19064 Guns 118554 | . 467 341 1485 261 2531 2002 4277 . 2605 538 936 969 1840 4510 1824 1767 3322 1519 3899 1101 1764 881 1459 5941 1681 803 382 2725 4125 9278 738 1524 5082 11751 8219 6943 19064 Cannons 1055 | . . . . . . . 266 . 789 . . . . . . . . . . . . . . . . . . . . . . . . . . . . Explosions 2513 | . . 110 231 35 617 768 569 . . . . . . . . . . . . . . . . . . . . . . . . . . . 183 . . Melee 6712 | . . . . . . . . . . . . . . . . . . . . . . . . . . . . . . . . . . . . 6712 . Ramming . | . . . . . . . . . . . . . . . . . . . . . . . . . . . . . . . . . . . . . . Kinetic 109333 | . . . . . . . 1354 . 3394 538 936 969 1840 4510 1824 1767 3322 1519 3899 1101 1764 881 1459 5941 1681 803 382 2725 4125 9278 738 1524 5082 11751 8219 6943 19064 Thermal 3703 | . . 110 231 35 617 561 2149 . . . . . . . . . . . . . . . . . . . . . . . . . . . . . . Explosive 390 | . . . . . . 207 . . . . . . . . . . . . . . . . . . . . . . . . . . . . 183 . . Electromagnetic 8696 | . 467 341 1485 261 2531 2002 1609 . . . . . . . . . . . . . . . . . . . . . . . . . . . . . . Impact . | . . . . . . . . . . . . . . . . . . . . . . . . . . . . . . . . . . . . . . Slashing 6712 | . . . . . . . . . . . . . . . . . . . . . . . . . . . . . . . . . . . . 6712 . Piercing . | . . . . . . . . . . . . . . . . . . . . . . . . . . . . . . . . . . . . . . Highest Corruption 48 | . . . . . . . . . 1 1 1 1 1 8 8 8 8 2 3 3 3 5 . 6 6 6 6 6 . 5 6 43 44 48 4 5 6 Average Corruption 9 | . . . . . . . . . 1 1 1 1 1 5 8 8 2 2 2 3 3 4 . 2 6 6 6 6 . 5 5 43 43 45 3 4 5 Corruption Purged . | . . . . . . . . . . . . . . . . . . . . . . . . . . . . . . . . . . . . . . Effects 627 | . . . . . . . . . 7 . 1 1 1 20 15 12 4 2 5 3 7 1 . 11 9 8 4 13 . 1 7 11 141 262 5 24 52 Message Errors 46 | . . . . . . . . . . . . 1 . 1 1 3 2 . 2 . 1 . . 3 1 1 . 3 . . 2 . 4 12 . 4 5 Matter Fused 40 | . . . . . . . . . . . . . . 1 . 1 . . . 1 . . . 1 4 2 1 1 . 1 1 . 7 13 1 4 1 Heat Flow Errors 10 | . . . . . . . . . . . . . . . . 1 . . . 1 1 . . . 1 1 1 . . . . . 1 1 . 1 1 Energy Discharges 22 | . . . . . . . . . 1 . . . . 4 2 . 1 . 1 . . . . 1 . . 1 1 . . 1 . 3 3 1 2 . Parts Rejected 3 | . . . . . . . . . . . . . . . 1 . . . . . . . . . . . . . . . . . . 1 . . 1 Data Loss (minor) 28 | . . . . . . . . . 4 . . . . 1 2 1 . . 1 . . 1 . 2 1 . . 2 . . 2 1 2 3 . 2 3 Data Loss (major) 12 | . . . . . . . . . . . . . . . . . . . . . . . . 1 . 1 1 . . . . . 2 7 . . . Misfires 8 | . . . . . . . . . . . . . . . 2 . . . . . . . . . . 1 . 1 . . . 1 1 2 . . . Alerts 3 | . . . . . . . . . . . . . . . . . . . . . . . . . . . . . . . . . 2 1 . . . Misdirections 102 | . . . . . . . . . . . . . . . . . . . . . . . . . . . . . . . . 9 51 42 . . . Targeting Errors 288 | . . . . . . . . . 1 . 1 . 1 9 6 5 1 2 1 1 4 . . 2 2 2 . 4 . . 1 . 52 147 2 9 35 Weapon Failures 65 | . . . . . . . . . 1 . . . . 4 1 1 . . . . 1 . . 1 . . . 1 . . . . 16 30 1 2 6 Overload Shots . | . . . . . . . . . . . . . . . . . . . . . . . . . . . . . . . . . . . . . . Overflow Damage 2043 | . . . . . . 68 8 . 37 . . . . . . . . . . . . . . . . . . . . . . . . . . 1930 . Projectiles 45 | . . . . . . . 8 . 37 . . . . . . . . . . . . . . . . . . . . . . . . . . . . Explosions 68 | . . . . . . 68 . . . . . . . . . . . . . . . . . . . . . . . . . . . . . . . Melee 1930 | . . . . . . . . . . . . . . . . . . . . . . . . . . . . . . . . . . . . 1930 . Knockbacks 3 | . . . . . . . 1 . 2 . . . . . . . . . . . . . . . . . . . . . . . . . . . . Impact . | . . . . . . . . . . . . . . . . . . . . . . . . . . . . . . . . . . . . . . Kinetic 3 | . . . . . . . 1 . 2 . . . . . . . . . . . . . . . . . . . . . . . . . . . . Secondary . | . . . . . . . . . . . . . . . . . . . . . . . . . . . . . . . . . . . . . . Self-Inflicted Damage 646 | . . . 78 7 242 297 22 . . . . . . . . . . . . . . . . . . . . . . . . . . . . . . Shots 17 | . . . 2 1 7 6 1 . . . . . . . . . . . . . . . . . . . . . . . . . . . . . . Rammed . | . . . . . . . . . . . . . . . . . . . . . . . . . . . . . . . . . . . . . . Targets Rammed . | . . . . . . . . . . . . . . . . . . . . . . . . . . . . . . . . . . . . . . Kicked . | . . . . . . . . . . . . . . . . . . . . . . . . . . . . . . . . . . . . . . Crushed . | . . . . . . . . . . . . . . . . . . . . . . . . . . . . . . . . . . . . . . Highest Temperature 489 | . 140 192 350 90 300 439 428 . 224 85 106 310 232 206 198 303 340 226 244 306 285 258 215 330 324 353 74 276 222 290 246 206 482 489 366 260 262 Average Temperature 91 | . 42 89 82 44 88 149 97 . 58 40 41 156 80 50 67 115 115 79 67 115 102 131 105 102 133 128 40 104 66 66 129 78 167 134 115 86 82 Received Heat Transfer 2549 | . 78 45 264 51 216 369 360 . 150 72 . 66 117 177 45 45 20 60 57 9 54 . 30 60 12 51 . 24 . 63 . . 9 18 . . 27 Effects 26 | . . . 1 . . 1 2 . . . . . . 2 . 1 9 . . . . . . 2 . 3 . 1 . . . . 2 2 . . . Shutdowns 2 | . . . . . . . . . . . . . . . . . . . . . . . . . . 1 . . . . . . 1 . . . . Energy Bleed 7 | . . . 1 . . . . . . . . . . . . 1 3 . . . . . . . . . . 1 . . . . . 1 . . . Interference 14 | . . . . . . . 2 . . . . . . 2 . . 6 . . . . . . 2 . 2 . . . . . . . . . . . Matter Decay 1 | . . . . . . 1 . . . . . . . . . . . . . . . . . . . . . . . . . . . . . . . Damage (minor) 2 | . . . . . . . . . . . . . . . . . . . . . . . . . . . . . . . . . 1 1 . . . Siege Activations . | . . . . . . . . . . . . . . . . . . . . . . . . . . . . . . . . . . . . . . Robots Corrupted 5 | . . 1 . . 1 1 2 . . . . . . . . . . . . . . . . . . . . . . . . . . . . . . Combat Hostiles 5 | . . 1 . . 1 1 2 . . . . . . . . . . . . . . . . . . . . . . . . . . . . . . Parts Fried 46 | . 1 . 6 2 20 5 12 . . . . . . . . . . . . . . . . . . . . . . . . . . . . . . Impact Corruptions . | . . . . . . . . . . . . . . . . . . . . . . . . . . . . . . . . . . . . . . Robots Melted . | . . . . . . . . . . . . . . . . . . . . . . . . . . . . . . . . . . . . . . Combat Hostiles . | . . . . . . . . . . . . . . . . . . . . . . . . . . . . . . . . . . . . . . Parts Melted 9 | . . . 1 . . 1 7 . . . . . . . . . . . . . . . . . . . . . . . . . . . . . . Heat Transferred 5201 | . . 150 350 50 750 550 3351 . . . . . . . . . . . . . . . . . . . . . . . . . . . . . . Parts Sabotaged . | . . . . . . . . . . . . . . . . . . . . . . . . . . . . . . . . . . . . . . Parts Stolen . | . . . . . . . . . . . . . . . . . . . . . . . . . . . . . . . . . . . . . . Parts Stripped . | . . . . . . . . . . . . . . . . . . . . . . . . . . . . . . . . . . . . . . Power Chain Reactions 25 | . . 1 4 1 8 7 4 . . . . . . . . . . . . . . . . . . . . . . . . . . . . . . Missiles Intercepted . | . . . . . . . . . . . . . . . . . . . . . . . . . . . . . . . . . . . . . . Alert | -11 -10 -10 -9 -9 -8 -8 -7 -7 -7 -7 -7 -7 -6 -6 -6 -6 -6 -5 -5 -5 -5 -5 -4 -4 -4 -4 -4 -3 -3 -3 -3 -2 -2 -2 -1 -1 -1 ------- Run | Scr Mat Min Mat Min Mat Sto Fac Was Fac Low Low Dat Pro Fac Low Low Zio Pro Fac Upp Upp War Pro Fac Upp Upp Zhi Pro Res Arm Lab Res Qua Sec Acc Com Ac0 Peak Influence 1926 | . 456 179 620 198 1096 948 1926 719 1599 . . . . 1375 . . . . 1145 . . . . 1070 . . . . 573 833 . 190 684 1171 1924 1353 . Average Influence 637 | . 201 109 265 109 536 686 1102 693 1009 . . . . 756 . . . . 525 . . . . 674 . . . . 329 470 . 135 350 723 1131 801 . Maximum Alert Level 5 | . 2 . 2 . 3 3 5 3 4 . . . . 4 . . . . 4 . . . . 3 . . . . 2 3 . . 2 4 5 4 . Low Security (%) 19 | 100 51 100 46 100 21 . . . . . . . . 15 . . . . 15 . . . . 8 . . . . 8 12 . 100 23 . . 5 . Level 1 14 | . 40 . 25 . 16 4 1 . . . . . . 14 . . . . 47 . . . . 13 . . . . 68 18 . . 40 9 . 5 . Level 2 23 | . 8 . 27 . 28 51 16 74 28 . . . . 10 . . . . . . . . . 23 . . . . 23 56 . . 36 39 15 13 . Level 3 25 | . . . . . 33 44 27 25 27 . . . . 33 . . . . 29 . . . . 54 . . . . . 12 . . . 47 39 43 . Level 4 14 | . . . . . . . 52 . 43 . . . . 26 . . . . 7 . . . . . . . . . . . . . . 3 22 32 . Level 5 1 | . . . . . . . 1 . . . . . . . . . . . . . . . . . . . . . . . . . . . 22 . . High Security . | . . . . . . . . . . . . . . . . . . . . . . . . . . . . . . . . . . . . . . Max Security . | . . . . . . . . . . . . . . . . . . . . . . . . . . . . . . . . . . . . . . Squads Dispatched 95 | . 3 . 3 . 4 4 8 . 4 . . . . 7 . . . . 3 . . . . 10 . . . . 2 6 . 4 8 14 10 5 . Investigation 15 | . 2 . 2 . 1 3 1 . 2 . . . . 1 . . . . 1 . . . . . . . . . . 1 . . . . . 1 . Extermination 5 | . . . . . . . . . . . . . . . . . . . . . . . . . . . . . . . . . 1 2 1 1 . Reinforcement 15 | . 1 . 1 . 2 . 4 . 2 . . . . . . . . . . . . . . 1 . . . . . . . 2 . 1 . 1 . Assault 7 | . . . . . 1 . 2 . . . . . . 1 . . . . . . . . . . . . . . . . . . . . 1 2 . Garrison 3 | . . . . . . 1 1 . . . . . . . . . . . . . . . . . . . . . . . . . . . 1 . . Intercept 50 | . . . . . . . . . . . . . . 5 . . . . 2 . . . . 9 . . . . 2 5 . 2 7 11 7 . . Construction Impeded . | . . . . . . . . . . . . . . . . . . . . . . . . . . . . . . . . . . . . . . Haulers Reinforced 5 | . . . . . . . 2 . . . . . . . . . . . . . . . . 1 . . . . . . . 1 . 1 . . . Stealth | -11 -10 -10 -9 -9 -8 -8 -7 -7 -7 -7 -7 -7 -6 -6 -6 -6 -6 -5 -5 -5 -5 -5 -4 -4 -4 -4 -4 -3 -3 -3 -3 -2 -2 -2 -1 -1 -1 --------- Run | Scr Mat Min Mat Min Mat Sto Fac Was Fac Low Low Dat Pro Fac Low Low Zio Pro Fac Upp Upp War Pro Fac Upp Upp Zhi Pro Res Arm Lab Res Qua Sec Acc Com Ac0 Distress Signals 34 | . 1 . 3 . 1 . 2 . . . . . . . . . . . 1 . . 1 . . . . . . 1 3 . . . 3 . 18 . Communications Jammed . | . . . . . . . . . . . . . . . . . . . . . . . . . . . . . . . . . . . . . . Distress Signals . | . . . . . . . . . . . . . . . . . . . . . . . . . . . . . . . . . . . . . . Times Spotted 823 | . 26 8 30 5 41 39 60 5 38 7 8 3 15 41 13 13 27 8 30 8 14 6 11 33 15 5 . 14 23 62 1 6 25 64 47 19 53 Peak Tracking Total 13 | . 5 3 7 3 7 6 5 6 3 4 5 3 5 5 7 9 8 3 5 3 4 2 3 6 9 4 . 4 5 13 1 3 6 8 7 5 4 Tactical Retreats 20 | . 3 1 1 . . 3 . . 2 . . . . 1 . . 1 . 3 . . 1 . . 1 . . . . 2 . . . . 1 . . Traps | -11 -10 -10 -9 -9 -8 -8 -7 -7 -7 -7 -7 -7 -6 -6 -6 -6 -6 -5 -5 -5 -5 -5 -4 -4 -4 -4 -4 -3 -3 -3 -3 -2 -2 -2 -1 -1 -1 ------- Run | Scr Mat Min Mat Min Mat Sto Fac Was Fac Low Low Dat Pro Fac Low Low Zio Pro Fac Upp Upp War Pro Fac Upp Upp Zhi Pro Res Arm Lab Res Qua Sec Acc Com Ac0 Traps Triggered 17 | . 2 1 . . . 1 5 . . . . . . 1 . . . . 1 . . . . . . . . . 1 3 . . . 1 1 . . Indirectly . | . . . . . . . . . . . . . . . . . . . . . . . . . . . . . . . . . . . . . . Trap Hack Attempts . | . . . . . . . . . . . . . . . . . . . . . . . . . . . . . . . . . . . . . . Triggered . | . . . . . . . . . . . . . . . . . . . . . . . . . . . . . . . . . . . . . . Disarmed . | . . . . . . . . . . . . . . . . . . . . . . . . . . . . . . . . . . . . . . Reprogrammed . | . . . . . . . . . . . . . . . . . . . . . . . . . . . . . . . . . . . . . . Reused . | . . . . . . . . . . . . . . . . . . . . . . . . . . . . . . . . . . . . . . Traps Extracted . | . . . . . . . . . . . . . . . . . . . . . . . . . . . . . . . . . . . . . . Installed . | . . . . . . . . . . . . . . . . . . . . . . . . . . . . . . . . . . . . . . Triggered 7 | . . . . . . . . . . . . . . . . . . . . 1 . 3 . . . . . 3 . . . . . . . . . Machines | -11 -10 -10 -9 -9 -8 -8 -7 -7 -7 -7 -7 -7 -6 -6 -6 -6 -6 -5 -5 -5 -5 -5 -4 -4 -4 -4 -4 -3 -3 -3 -3 -2 -2 -2 -1 -1 -1 ---------- Run | Scr Mat Min Mat Min Mat Sto Fac Was Fac Low Low Dat Pro Fac Low Low Zio Pro Fac Upp Upp War Pro Fac Upp Upp Zhi Pro Res Arm Lab Res Qua Sec Acc Com Ac0 Machines Disabled 47 | . . . 1 . 3 7 3 . 2 1 . . . 5 1 . . . . . . . . 2 1 . . . . 1 1 . 3 5 3 1 7 Max in Single Turn 2 | . . . 1 . 2 2 1 . 1 1 . . . 2 1 . . . . . . . . 1 1 . . . . 1 1 . 1 1 1 1 1 Garrison Access 18 | . . . . . 1 1 2 . 4 . . . . 2 . . . . 2 . . . . 1 . . . . 2 . . 1 1 . 1 . . Machines Sabotaged . | . . . . . . . . . . . . . . . . . . . . . . . . . . . . . . . . . . . . . . Garrisons Compromised . | . . . . . . . . . . . . . . . . . . . . . . . . . . . . . . . . . . . . . . Overloaded Fab Kills . | . . . . . . . . . . . . . . . . . . . . . . . . . . . . . . . . . . . . . . Fab Network Shutdowns 4 | . . . . . . . 1 . 1 . . . . 1 . . . . 1 . . . . . . . . . . . . . . . . . . Hacking | -11 -10 -10 -9 -9 -8 -8 -7 -7 -7 -7 -7 -7 -6 -6 -6 -6 -6 -5 -5 -5 -5 -5 -4 -4 -4 -4 -4 -3 -3 -3 -3 -2 -2 -2 -1 -1 -1 --------- Run | Scr Mat Min Mat Min Mat Sto Fac Was Fac Low Low Dat Pro Fac Low Low Zio Pro Fac Upp Upp War Pro Fac Upp Upp Zhi Pro Res Arm Lab Res Qua Sec Acc Com Ac0 Machines Accessed 171 | . 7 1 9 . 9 13 16 . 15 . . 4 1 11 . 1 1 . 12 . . 7 . 7 . 1 9 . 5 10 2 1 7 10 7 4 1 Terminals 112 | . 7 . 9 . 8 12 10 . 8 . . . 1 7 . . . . 6 . . . . 4 . 1 . . 3 8 . 1 6 10 7 4 . Fabricators 12 | . . . . . . . 2 . 1 . . . . 2 . . . . 3 . . . . 2 . . . . . 2 . . . . . . . Repair Stations 2 | . . . . . . . 1 . 1 . . . . . . . . . . . . . . . . . . . . . . . . . . . . Recycling Units . | . . . . . . . . . . . . . . . . . . . . . . . . . . . . . . . . . . . . . . Scanalyzers 3 | . . . . . . . 1 . 1 . . . . . . . . . 1 . . . . . . . . . . . . . . . . . . Garrison Access 16 | . . . . . 1 1 2 . 4 . . . . 2 . . . . 2 . . . . 1 . . . . 2 . . . 1 . . . . Total Hacks 1083 | . 50 1 74 . 67 73 88 . 67 . . 23 16 86 . 1 5 . 111 . . 15 . 32 . 11 44 . 27 65 21 10 28 63 47 41 17 Successful 700 | . 32 1 45 . 45 43 52 . 38 . . 23 15 53 . 1 5 . 77 . . 15 . 17 . 10 44 . 14 33 21 4 17 34 27 17 17 Failed 378 | . 17 . 28 . 21 29 36 . 29 . . . 1 33 . . . . 33 . . . . 15 . 1 . . 13 32 . 6 11 29 20 24 . Catastrophic 48 | . 2 . 5 . 1 3 1 . 2 . . . . 9 . . . . . . . . . 2 . . . . 2 5 . 3 1 6 5 1 . Database Lockouts 6 | . 1 . 1 . 2 1 . . . . . . . . . . . . 1 . . . . . . . . . . . . . . . . . . Manual 608 | . 40 . 58 . 48 43 35 . 24 . . . 6 54 . . . . 54 . . 1 . 23 . 10 . . 5 41 6 9 23 53 37 38 . Terminals 827 | . 50 . 74 . 65 72 65 . 42 . . . 16 69 . . . . 76 . . . . 19 . 11 . . 25 55 . 10 27 63 47 41 . Fabricators 67 | . . . . . . . 13 . 4 . . . . 13 . . . . 18 . . . . 9 . . . . . 10 . . . . . . . Repair Stations 7 | . . . . . . . 2 . 5 . . . . . . . . . . . . . . . . . . . . . . . . . . . . Recycling Units . | . . . . . . . . . . . . . . . . . . . . . . . . . . . . . . . . . . . . . . Scanalyzers 23 | . . . . . . . 5 . 7 . . . . . . . . . 11 . . . . . . . . . . . . . . . . . . Garrison Access 32 | . . . . . 2 1 3 . 9 . . . . 4 . . . . 6 . . . . 4 . . . . 2 . . . 1 . . . . Terminal Hacks 409 | . 24 1 22 . 26 26 24 . 14 . . 23 11 22 . 1 5 . 35 . . 15 . 4 . 4 44 . 11 15 21 3 5 14 13 9 17 Record 127 | . . . . . 1 . . . . . . 11 10 . . 1 . . 14 . . 13 . . . 1 36 . . . 21 . 1 1 . . 17 Part Schematic 41 | . . . . . . 3 5 . . . . 5 . 10 . . 5 . 3 . . . . 1 . 1 4 . 2 2 . . . . . . . Robot Schematic 7 | . . . . . . 2 . . 1 . . 4 . . . . . . . . . . . . . . . . . . . . . . . . . Robot Analysis 2 | . 1 . . . . 1 . . . . . . . . . . . . . . . . . . . . . . . . . . . . . . . Prototype ID Bank 45 | . 12 . 3 . 13 4 . . 1 . . 3 . 3 . . . . 1 . . . . . . . 4 . . 1 . . . . . . . Open Door 11 | . . 1 . . . 1 . . . . . . . . . . . . . . . 2 . . . . . . . . . 1 . 3 2 1 . Level Access Points 13 | . 1 . 1 . 1 . 2 . . . . . 1 1 . . . . 1 . . . . 1 . 1 . . . . . 1 . . 1 1 . Branch Access Points 14 | . 1 . 1 . 1 . 2 . . . . . . 1 . . . . 1 . . . . 1 . 1 . . 1 1 . 1 . . 1 1 . Emergency Access Points 3 | . . . . . 1 . . . 1 . . . . . . . . . 1 . . . . . . . . . . . . . . . . . . Machine Index 1 | . . . . . 1 . . . . . . . . . . . . . . . . . . . . . . . . . . . . . . . . Terminal Index 6 | . 1 . 1 . 1 1 1 . 1 . . . . . . . . . . . . . . . . . . . . . . . . . . . . Repair Station Index 1 | . . . . . . . 1 . . . . . . . . . . . . . . . . . . . . . . . . . . . . . . Scanalyzer Index 2 | . . . . . . . 1 . 1 . . . . . . . . . . . . . . . . . . . . . . . . . . . . Alert Level 39 | . 4 . 5 . . 3 2 . 2 . . . . 3 . . . . 3 . . . . 1 . . . . 3 2 . . 3 5 2 1 . Unreport Threat 45 | . 1 . 4 . . 4 3 . 3 . . . . 1 . . . . 6 . . . . . . . . . 3 4 . . 1 5 6 4 . Locate Traps 2 | . . . . . . 1 . . . . . . . . . . . . 1 . . . . . . . . . . . . . . . . . . Patrol Status 1 | . . . . . . . . . . . . . . . . . . . . . . . . . . . . . . 1 . . . . . . . Recall Investigation 3 | . . . 1 . 1 1 . . . . . . . . . . . . . . . . . . . . . . . . . . . . . . . Recall Reinforcements 3 | . 2 . 1 . . . . . . . . . . . . . . . . . . . . . . . . . . . . . . . . . . Recall Assault 1 | . . . . . . . 1 . . . . . . . . . . . . . . . . . . . . . . . . . . . . . . Hauler Manifests 15 | . 1 . 2 . 2 1 3 . 2 . . . . . . . . . 1 . . . . . . . . . 1 1 . . . . 1 . . Registered Components 8 | . . . 1 . 1 1 1 . 1 . . . . 1 . . . . 1 . . . . . . . . . . 1 . . . . . . . Registered Prototypes 5 | . . . . . 1 1 1 . . . . . . 1 . . . . 1 . . . . . . . . . . . . . . . . . . Zone Layout 13 | . . . 2 . 2 2 1 . 1 . . . . 1 . . . . 1 . . . . . . . . . 1 2 . . . . . . . Disengage Seal 1 | . . . . . . . . . . . . . . . . . . . . . . . . . . . . . . . . . . . . 1 . Fabricator Hacks 37 | . . . . . . . 9 . 2 . . . . 9 . . . . 9 . . . . 4 . . . . . 4 . . . . . . . Load Schematic 18 | . . . . . . . 5 . 1 . . . . 5 . . . . 3 . . . . 2 . . . . . 2 . . . . . . . Build 19 | . . . . . . . 4 . 1 . . . . 4 . . . . 6 . . . . 2 . . . . . 2 . . . . . . . Repair Station Hacks 4 | . . . . . . . 2 . 2 . . . . . . . . . . . . . . . . . . . . . . . . . . . . Scan Component 2 | . . . . . . . 1 . 1 . . . . . . . . . . . . . . . . . . . . . . . . . . . . Repair 2 | . . . . . . . 1 . 1 . . . . . . . . . . . . . . . . . . . . . . . . . . . . Recycling Unit Hacks . | . . . . . . . . . . . . . . . . . . . . . . . . . . . . . . . . . . . . . . Scanalyzer 18 | . . . . . . . 4 . 5 . . . . . . . . . 9 . . . . . . . . . . . . . . . . . . Insert Component 8 | . . . . . . . 2 . 2 . . . . . . . . . 4 . . . . . . . . . . . . . . . . . . Analyze 10 | . . . . . . . 2 . 3 . . . . . . . . . 5 . . . . . . . . . . . . . . . . . . Garrison Access Hacks 16 | . . . . . 1 1 2 . 4 . . . . 2 . . . . 2 . . . . 1 . . . . 2 . . . 1 . . . . Seal Access 16 | . . . . . 1 1 2 . 4 . . . . 2 . . . . 2 . . . . 1 . . . . 2 . . . 1 . . . . Unauthorized Hacks 530 | . 19 . 54 . 43 37 24 . 31 . . . 9 49 . . . . 53 . . . . 24 . 12 . . 3 38 . 2 27 49 30 26 . Terminals 196 | . 8 . 23 . 18 16 11 . 9 . . . 4 14 . . . . 16 . . . . 4 . 6 . . 1 12 . 1 11 20 14 8 . Track 70 | . 3 . 7 . 8 9 7 . 2 . . . 1 4 . . . . 5 . . . . 1 . 1 . . . 4 . . 4 7 4 3 . Assimilate 17 | . . . 3 . 1 . . . 3 . . . . 2 . . . . . . . . . . . 1 . . 1 1 . . 2 2 1 . . Botnet 53 | . 3 . 5 . 4 4 3 . 4 . . . . 4 . . . . 5 . . . . 1 . 1 . . . 4 . 1 3 4 4 3 . Detonate 4 | . . . . . . . . . . . . . 1 . . . . . . . . . . . . 1 . . . . . . . 2 . . . Disrupt 36 | . 1 . 5 . 4 2 . . . . . . 1 3 . . . . 5 . . . . 1 . 1 . . . 2 . . 1 5 4 1 . Operators 16 | . 1 . 3 . 1 1 1 . . . . . 1 1 . . . . 1 . . . . 1 . 1 . . . 1 . . 1 . 1 1 . Fabricators 16 | . . . . . . . . . 2 . . . . 4 . . . . 5 . . . . 3 . . . . . 2 . . . . . . . Report 3 | . . . . . . . . . . . . . . 1 . . . . 1 . . . . 1 . . . . . . . . . . . . . Prioritize 10 | . . . . . . . . . 1 . . . . 2 . . . . 3 . . . . 2 . . . . . 2 . . . . . . . Siphon 2 | . . . . . . . . . . . . . . 1 . . . . 1 . . . . . . . . . . . . . . . . . . Haulers 1 | . . . . . . . . . 1 . . . . . . . . . . . . . . . . . . . . . . . . . . . . Repair Stations . | . . . . . . . . . . . . . . . . . . . . . . . . . . . . . . . . . . . . . . Recycling Units . | . . . . . . . . . . . . . . . . . . . . . . . . . . . . . . . . . . . . . . Scanalyzers . | . . . . . . . . . . . . . . . . . . . . . . . . . . . . . . . . . . . . . . Garrison Access 4 | . . . . . . . . . . . . . . 2 . . . . 1 . . . . 1 . . . . . . . . . . . . . Reprogram 1 | . . . . . . . . . . . . . . 1 . . . . . . . . . . . . . . . . . . . . . . . Watchers 3 | . . . . . . . . . . . . . . 1 . . . . 1 . . . . 1 . . . . . . . . . . . . . Data Cores Recovered 5 | . . . . . 2 . . . . . . . . . . . . . . . . . . . . . . . . . . . 1 1 1 . . Used 2 | . . . . . 1 . . . . . . . . . . . . . . . . . . . . . . . . . . . . . 1 . . Hacking Detections 105 | . 5 . 7 . 6 11 12 . 9 . . . 1 7 . . . . 6 . . . . 4 . 1 . . 3 8 . 1 5 8 7 4 . Full Trace Events 8 | . . . 1 . . 2 1 . 2 . . . . 1 . . . . . . . . . . . . . . . . . . . . . 1 . Feedback Events 1 | . . . . . . . . . 1 . . . . . . . . . . . . . . . . . . . . . . . . . . . . Corruption 1 | . . . . . . . . . 1 . . . . . . . . . . . . . . . . . . . . . . . . . . . . Feedback Blocked . | . . . . . . . . . . . . . . . . . . . . . . . . . . . . . . . . . . . . . . Robot Schematics Acquired 7 | . . . . . . 2 . . 1 . . 4 . . . . . . . . . . . . . . . . . . . . . . . . . Robots Built . | . . . . . . . . . . . . . . . . . . . . . . . . . . . . . . . . . . . . . . Matter . | . . . . . . . . . . . . . . . . . . . . . . . . . . . . . . . . . . . . . . Time . | . . . . . . . . . . . . . . . . . . . . . . . . . . . . . . . . . . . . . . Total Robot Build Rating . | . . . . . . . . . . . . . . . . . . . . . . . . . . . . . . . . . . . . . . Part Schematics Acquired 45 | . . . . . . 3 6 . 2 . . 5 . 10 . . 5 . 5 . . . . 1 . 1 4 . 2 1 . . . . . . . Parts Built 19 | . . . . . . . 7 . 1 . . . . 4 . . . . 2 . . . . 3 . . . . . 2 . . . . . . . Matter 3385 | . . . . . . . 672 . 252 . . . . 658 . . . . 801 . . . . 490 . . . . . 512 . . . . . . . Time 1109 | . . . . . . . 167 . 134 . . . . 217 . . . . 278 . . . . 186 . . . . . 127 . . . . . . . Total Part Build Rating 111 | . . . . . . . 26 . 4 . . . . 25 . . . . 17 . . . . 23 . . . . . 16 . . . . . . . Parts Repaired 2 | . . . . . . . 1 . 1 . . . . . . . . . . . . . . . . . . . . . . . . . . . . Time 126 | . . . . . . . 64 . 62 . . . . . . . . . . . . . . . . . . . . . . . . . . . . Parts Recycled . | . . . . . . . . . . . . . . . . . . . . . . . . . . . . . . . . . . . . . . Recycled Matter . | . . . . . . . . . . . . . . . . . . . . . . . . . . . . . . . . . . . . . . Retrieved Matter . | . . . . . . . . . . . . . . . . . . . . . . . . . . . . . . . . . . . . . . Retrieved Components . | . . . . . . . . . . . . . . . . . . . . . . . . . . . . . . . . . . . . . . Parts Scanalyzed 6 | . . . . . . . 2 . 2 . . . . . . . . . 2 . . . . . . . . . . . . . . . . . . Part Schematics Acquired 6 | . . . . . . . 2 . 2 . . . . . . . . . 2 . . . . . . . . . . . . . . . . . . Parts Damaged 1 | . . . . . . . . . . . . . . . . . . . 1 . . . . . . . . . . . . . . . . . . Bothacking | -11 -10 -10 -9 -9 -8 -8 -7 -7 -7 -7 -7 -7 -6 -6 -6 -6 -6 -5 -5 -5 -5 -5 -4 -4 -4 -4 -4 -3 -3 -3 -3 -2 -2 -2 -1 -1 -1 ------------ Run | Scr Mat Min Mat Min Mat Sto Fac Was Fac Low Low Dat Pro Fac Low Low Zio Pro Fac Upp Upp War Pro Fac Upp Upp Zhi Pro Res Arm Lab Res Qua Sec Acc Com Ac0 Used RIF Installer . | . . . . . . . . . . . . . . . . . . . . . . . . . . . . . . . . . . . . . . Robots Hacked 1 | . . . . . . . . . . . . . . . . . . . . . . . . . . . . . . . . 1 . . . . . Non-combat . | . . . . . . . . . . . . . . . . . . . . . . . . . . . . . . . . . . . . . . Combat 1 | . . . . . . . . . . . . . . . . . . . . . . . . . . . . . . . . 1 . . . . . Robot Hacks Applied 1 | . . . . . . . . . . . . . . . . . . . . . . . . . . . . . . . . 1 . . . . . parse_system 1 | . . . . . . . . . . . . . . . . . . . . . . . . . . . . . . . . 1 . . . . . Manual 1 | . . . . . . . . . . . . . . . . . . . . . . . . . . . . . . . . 1 . . . . . Relay Couplers Released 1 | . . . . . . . . . 1 . . . . . . . . . . . . . . . . . . . . . . . . . . . . Programmers 1 | . . . . . . . . . 1 . . . . . . . . . . . . . . . . . . . . . . . . . . . . Robots Rewired 9 | . . . . . . . . . . . 2 . . . 1 2 . . . . . . . . 2 . . 2 . . . . . . . . . Allies Hacked . | . . . . . . . . . . . . . . . . . . . . . . . . . . . . . . . . . . . . . . Hacks Repelled 1 | . . . . . . . . . . . . . . . . . . . . . . . . . . . . . . . . . . . . 1 . Allies | -11 -10 -10 -9 -9 -8 -8 -7 -7 -7 -7 -7 -7 -6 -6 -6 -6 -6 -5 -5 -5 -5 -5 -4 -4 -4 -4 -4 -3 -3 -3 -3 -2 -2 -2 -1 -1 -1 -------- Run | Scr Mat Min Mat Min Mat Sto Fac Was Fac Low Low Dat Pro Fac Low Low Zio Pro Fac Upp Upp War Pro Fac Upp Upp Zhi Pro Res Arm Lab Res Qua Sec Acc Com Ac0 Total Allies 67 | . . . 3 3 . 10 . 1 2 . 2 . . 2 1 2 . . . . . . . . 2 . . 2 1 1 . . 1 2 1 31 . Largest Group 22 | . . . 2 4 2 10 10 1 1 1 3 3 . 1 1 3 3 . . . . . . . 2 2 2 4 4 1 . . 1 2 1 22 . Highest-Rated Group 1274 | . . . 19 50 26 173 173 16 26 26 82 82 . 26 30 92 92 . . . . . . . 78 78 78 173 173 26 . . 26 70 44 1274 . Highest-Rated Ally 90 | . . . 10 16 16 29 29 16 26 26 31 31 . 26 30 32 32 . . . . . . . 48 48 48 48 48 26 . . 26 44 44 90 . Total Orders 22 | . . . 4 2 . 3 . . . 2 2 2 . . . . . . . . . . . . . . . . . 4 . . . 3 . . . STAY 2 | . . . . 1 . 1 . . . . . . . . . . . . . . . . . . . . . . . . . . . . . . . GOTO 10 | . . . 2 . . 1 . . . 1 1 1 . . . . . . . . . . . . . . . . . 2 . . . 2 . . . FOLLOW 10 | . . . 2 1 . 1 . . . 1 1 1 . . . . . . . . . . . . . . . . . 2 . . . 1 . . . Ally Attacks 277 | . . . . 10 3 10 50 9 . . . 2 . . . . 24 . . . . . . . . . . . 2 . . . . . . 167 . Total Damage 7040 | . . . . 109 16 169 600 117 . . . 46 . . . . 682 . . . . . . . . . . . 17 . . . . . . 5284 . Kills 46 | . . . . 1 . 2 7 . . . . . . . . . 14 . . . . . . . . . . . . . . . . . . 22 . Allies Corrupted 1 | . . . . . . . . . . . . . . . . . . . . . . . . . . . . . . . . . . . . 1 . Allies Melted . | . . . . . . . . . . . . . . . . . . . . . . . . . . . . . . . . . . . . . . Intel | -11 -10 -10 -9 -9 -8 -8 -7 -7 -7 -7 -7 -7 -6 -6 -6 -6 -6 -5 -5 -5 -5 -5 -4 -4 -4 -4 -4 -3 -3 -3 -3 -2 -2 -2 -1 -1 -1 ------- Run | Scr Mat Min Mat Min Mat Sto Fac Was Fac Low Low Dat Pro Fac Low Low Zio Pro Fac Upp Upp War Pro Fac Upp Upp Zhi Pro Res Arm Lab Res Qua Sec Acc Com Ac0 Robot Analysis Total 117 | . 1 . . . . 1 . . . . . 115 . . . . . . . . . . . . . . . . . . . . . . . . . Derelict Logs Recovered 13 | . . 1 . 2 . . . . . 1 2 . . . 2 . . 1 . 1 . . 1 . 1 1 . . . . . . . . . . . Drone Launches . | . . . . . . . . . . . . . . . . . . . . . . . . . . . . . . . . . . . . . . Drone Recoveries . | . . . . . . . . . . . . . . . . . . . . . . . . . . . . . . . . . . . . . . Exploration | -11 -10 -10 -9 -9 -8 -8 -7 -7 -7 -7 -7 -7 -6 -6 -6 -6 -6 -5 -5 -5 -5 -5 -4 -4 -4 -4 -4 -3 -3 -3 -3 -2 -2 -2 -1 -1 -1 ------------- Run | Scr Mat Min Mat Min Mat Sto Fac Was Fac Low Low Dat Pro Fac Low Low Zio Pro Fac Upp Upp War Pro Fac Upp Upp Zhi Pro Res Arm Lab Res Qua Sec Acc Com Ac0 Turns Passed 14485 | 14 434 296 602 284 729 562 1116 43 881 379 514 129 210 721 237 216 366 213 500 121 197 306 186 642 230 192 109 295 284 600 166 256 407 748 375 430 495 Spaces Moved 27768 | 28 568 610 813 664 1156 863 1884 112 1666 1083 1213 155 336 1222 313 408 823 556 1014 279 401 955 390 1198 516 329 192 473 646 1001 314 772 922 1152 885 682 1174 Core 361 | 28 160 . . . . . . . . . . . . 48 . . . . 39 . . . . 43 . . . . . . . . 7 36 . . . Treads . | . . . . . . . . . . . . . . . . . . . . . . . . . . . . . . . . . . . . . . Legs . | . . . . . . . . . . . . . . . . . . . . . . . . . . . . . . . . . . . . . . Wheels . | . . . . . . . . . . . . . . . . . . . . . . . . . . . . . . . . . . . . . . Hover . | . . . . . . . . . . . . . . . . . . . . . . . . . . . . . . . . . . . . . . Flight 27407 | . 408 610 813 664 1156 863 1884 112 1666 1083 1213 155 336 1174 313 408 823 556 975 279 401 955 390 1155 516 329 192 473 646 1001 314 772 915 1116 885 682 1174 Fastest Speed 17 | 50 37 37 32 32 32 32 32 32 27 29 29 29 29 27 29 29 29 29 29 29 29 27 27 27 27 27 27 27 27 29 29 29 29 29 29 29 17 Average Speed 30 | 50 41 37 34 32 32 32 32 32 29 29 29 29 29 31 29 29 29 29 31 29 29 27 30 30 27 27 27 27 28 29 29 29 29 34 29 29 24 Slowest Speed 102 | 50 50 37 37 32 32 32 100 100 32 29 29 29 29 100 29 29 29 29 100 29 29 29 102 100 27 27 27 27 29 29 29 29 100 100 35 29 29 Overloaded Moves 53 | . . . . . . . . . 44 . . . . 9 . . . . . . . . . . . . . . . . . . . . . . . Propulsion Burnouts . | . . . . . . . . . . . . . . . . . . . . . . . . . . . . . . . . . . . . . . Robots Hopped 286 | . 5 9 22 14 12 28 50 . 20 2 2 . . 20 . 6 1 . 20 . . . . 19 . 2 1 1 9 . . 10 13 5 14 . 1 Cave-ins Triggered 2 | . . . . . . . . . . . . . . . . . . . . . . . . . . . . . . 1 . . . 1 . . . Teleports 4 | . . . . . . . . . . . . . . . . . . . . . . . . . . . . . . 1 1 . . . . 1 1 Exploration Rate (%) 60 | 3 88 98 64 95 86 94 48 74 33 98 99 74 58 25 53 64 81 66 27 50 70 88 66 19 66 53 62 63 18 59 100 14 76 54 29 24 64 Regions Visited 37 Branch Regions 25 Pre-discovered Areas 39 | . . 1 . . . . . . . 1 1 28 1 . 1 . . . . . . 2 . . 1 . 3 . . . . . . . . . . Known Exits Taken 19 | . 1 1 1 1 1 1 . . 1 . . . 1 1 . . . 1 1 . . . 1 1 . . . 1 1 . 1 1 . 1 1 . . Unknown Exits Taken 16 | 1 . . . . . . . . . 1 1 1 . . 1 1 1 . . 1 1 1 . . 1 1 1 . . 1 . . 1 . . 1 . Scrap Searched 38 | . . 2 . 2 . . . . . 3 5 . . . 2 1 1 3 . 1 3 . 4 . 5 2 . 4 . . . . . . . . . Spaces Dug 3 | . . . . . . . . . . . . . . . . . . . . . . . . . . . . . . . . . . . 3 . . Terrain Destroyed 391 | . . 9 15 3 22 49 48 . 10 . . . . . . . . . . . . . . . . . . . . . . . . . 30 . 205 Melee 3 | . . . . . . . . . . . . . . . . . . . . . . . . . . . . . . . . . . . 3 . . Projectile 215 | . . . . . . . . . 10 . . . . . . . . . . . . . . . . . . . . . . . . . . . 205 AOE 173 | . . 9 15 3 22 49 48 . . . . . . . . . . . . . . . . . . . . . . . . . . . 27 . . Actions | -11 -10 -10 -9 -9 -8 -8 -7 -7 -7 -7 -7 -7 -6 -6 -6 -6 -6 -5 -5 -5 -5 -5 -4 -4 -4 -4 -4 -3 -3 -3 -3 -2 -2 -2 -1 -1 -1 --------- Run | Scr Mat Min Mat Min Mat Sto Fac Was Fac Low Low Dat Pro Fac Low Low Zio Pro Fac Upp Upp War Pro Fac Upp Upp Zhi Pro Res Arm Lab Res Qua Sec Acc Com Ac0 Total 32661 | 27 706 629 1000 703 1389 1042 2170 117 1910 1128 1344 210 399 1430 452 479 911 591 1135 304 461 985 441 1462 612 433 249 647 745 1340 379 801 1073 1572 1024 887 1474 Wait 2130 | . 66 2 93 36 116 98 107 1 127 29 111 10 9 34 85 42 27 1 27 3 12 17 19 112 62 86 47 132 43 133 22 8 59 177 42 107 28 Move 27190 | 27 557 591 768 637 1131 808 1800 111 1625 1078 1208 154 335 1183 312 396 820 555 975 278 400 954 389 1159 515 324 189 470 628 999 313 752 897 1141 859 681 1171 Hop 254 | . 5 9 22 12 12 26 34 . 20 2 2 . . 18 . 5 1 . 18 . . . . 19 . 2 1 1 8 . . 9 11 5 11 . 1 Pick Up 50 | . . . . 3 2 . 3 1 3 1 . 2 2 1 2 . 3 . 3 . . . . 7 . . 2 . . 1 1 1 1 2 1 4 4 Fast Attach 147 | . 8 3 8 . 10 4 22 2 5 . . 1 . 3 1 . . . . 1 . 1 1 1 . . 2 . 2 1 10 1 11 27 1 1 20 Attach 36 | . . . . . 2 . 7 . 1 . . . 1 . . . . . 1 . . . . 2 . . . . . 1 2 1 3 5 1 5 4 Detach 24 | . . . . . . 1 4 1 1 . . . . . . . . . 1 . . . 1 . . . . . . . 2 1 4 4 . 1 3 Swap 33 | . . . 5 . . 4 4 . 1 . . 2 . 3 . . 2 . 2 . . . . 3 . . . . 1 1 . . . . . 1 4 Drop 151 | . 1 . 8 1 8 4 20 1 7 1 . 3 1 8 1 . 3 . 3 . . 1 1 11 . . 3 . 2 2 6 1 13 16 1 4 20 Fire 1528 | . 47 20 52 8 59 41 81 . 65 9 14 14 25 78 28 24 45 19 52 17 24 10 19 76 25 15 5 35 48 114 11 24 48 119 64 41 152 Melee 50 | . . . . . . . . . . . . . . . . . . . . . . . . . . . . . . . 5 . 1 4 4 29 7 Ram . | . . . . . . . . . . . . . . . . . . . . . . . . . . . . . . . . . . . . . . Kick . | . . . . . . . . . . . . . . . . . . . . . . . . . . . . . . . . . . . . . . Crush . | . . . . . . . . . . . . . . . . . . . . . . . . . . . . . . . . . . . . . . Escape Stasis 83 | . . . . . . . 18 . . . . . . 13 . . . . 18 . . . . . . . . . . 34 . . . . . . . Rewire 42 | . . . . . . 16 . . . . 5 . . . 8 6 . . . . . . . . 4 . . 3 . . . . . . . . . Trap . | . . . . . . . . . . . . . . . . . . . . . . . . . . . . . . . . . . . . . . Miscellaneous 943 | . 22 4 44 6 49 40 70 . 55 8 4 24 26 89 15 6 10 16 35 5 25 2 11 72 6 6 . 6 13 54 7 3 25 72 40 13 60 Route ------- -11/Scrapyard -10/Materials (discovered 4 exits: *Mat x3 / *Min) -10/Mines (discovered 2 exits: *Mat x2) -9/Materials (discovered 5 exits: Mat x3 / *Min x2) -9/Mines (discovered 2 exits: *Mat x2) -8/Materials (discovered 5 exits: *Fac x3 / *Sto x2) -8/Storage (discovered 2 exits: *Fac / [*Rec]) -7/Factory (discovered 6 exits: *Fac x4 / *Low x2) -7/Waste -7/Factory (discovered 2 exits: *Fac / *Low) -7/Lower Caves -7/Lower Caves (discovered 2 exits: *Fac / *Dat) -7/Data Miner -6/Proximity Caves -6/Factory (discovered 8 exits: *Fac x4 / *Low x2 / Ext x2) -6/Lower Caves -6/Lower Caves (discovered 2 exits: *Fac / *Zio) -6/Zion -5/Proximity Caves -5/Factory (discovered 6 exits: Fac x4 / *Upp x2) -5/Upper Caves -5/Upper Caves (discovered 2 exits: *Fac / *War) -5/Warlord -4/Proximity Caves -4/Factory (discovered 6 exits: Res x4 / *Upp x2) -4/Upper Caves -4/Upper Caves (discovered 2 exits: Res / *Zhi) -4/Zhirov -3/Proximity Caves -3/Research (discovered 3 exits: *Arm / Tes x2) -3/Armory (discovered 3 exits: *Res x2 / *Lab) -3/Lab -2/Research (discovered 5 exits: Acc x3 / *Qua x2) -2/Quarantine (discovered 2 exits: *Acc / *Sec) -2/Section 7 -1/Access (discovered 2 exits: Sur / *Com) -1/Command (discovered 3 exits: *Sur x2 / *Ac0) -1/Access_0 Near Former Tau Ceti IV History --------- Turn | Location | Event 6 | -11/Scrapyard | Discovered new exit (range 14) 15 | -11/Scrapyard | Entered Materials 23 | -10/Materials | Identified exit to Mines 23 | -10/Materials | Identified exit to Materials 124 | -10/Materials | Upgraded with Propulsion slot (x1) 274 | -10/Materials | Central database locked down 335 | -10/Materials | Build established: Hacker-Mutant 380 | -10/Materials | Reached level 2 394 | -10/Materials | Upgraded with Weapon slot (x1) 449 | -10/Materials | Entered Mines 467 | -10/Mines | Learned location of Mines (-9) 564 | -10/Mines | Discovered exit to Materials (range 4) 569 | -10/Mines | Met a Derelict who couldn't figure out how to use a Trap Extractor 621 | -10/Mines | Found a hidden stash of uninstalled traps 667 | -10/Mines | Destroyed YI-UF0 672 | -10/Mines | Discovered exit to Materials (range 12) 745 | -10/Mines | Entered Materials 747 | -9/Materials | Reached level 3 777 | -9/Materials | Core integrity fell below 50% 787 | -9/Materials | Reached level 4 888 | -9/Materials | Identified exit to Mines 962 | -9/Materials | Identified exit to Materials 985 | -9/Materials | Upgraded with Utility slot (x3) 1028 | -9/Materials | Reached level 5 1066 | -9/Materials | Upgraded with Power slot (x1) 1066 | -9/Materials | Upgraded with Weapon slot (x1) 1092 | -9/Materials | Central database locked down 1347 | -9/Materials | Entered Mines 1347 | -9/Mines | Accompanied by 1 ally 1348 | -9/Mines | Assisted by bots powering up and referring to "LRC-V3" 1349 | -9/Mines | Reached level 6 1397 | -9/Mines | Discovered exit to Materials (range 8) 1417 | -9/Mines | Build established: Hacker-Sprinter 1455 | -9/Mines | Learned Materials stockpile data 1459 | -9/Mines | A weapon hastily lodged in a ceiling crevice suddenly fell to the ground 1469 | -9/Mines | Discovered exit to Materials (range 9) 1471 | -9/Mines | Assembled infested the area 1541 | -9/Mines | Received a Rocket Launcher from a helpful Derelict 1543 | -9/Mines | Learned Materials emergency access door positions 1631 | -9/Mines | Entered Materials 1631 | -8/Materials | Accompanied by 2 allies 1633 | -8/Materials | Reached level 7 1636 | -8/Materials | Upgraded with Utility slot (x1) 1667 | -8/Materials | Discovered new exit (range 7) 1756 | -8/Materials | Identified exit to Storage 1756 | -8/Materials | Identified exit to Factory 1763 | -8/Materials | Central database locked down 1789 | -8/Materials | Reached level 8 1799 | -8/Materials | Upgraded with Utility slot (x1) 2031 | -8/Materials | First assault squad dispatched 2033 | -8/Materials | Reached level 9 2056 | -8/Materials | Destroyed 7 combat bots 2134 | -8/Materials | Destroyed 7 combat bots 2166 | -8/Materials | Reached level 10 2200 | -8/Materials | Upgraded with Weapon slot (x1) 2294 | -8/Materials | Upgraded with Utility slot (x1) 2360 | -8/Materials | Entered Storage 2362 | -8/Storage | Reached level 11 2511 | -8/Storage | Garrison activated, responded to threat 2511 | -8/Storage | Reached level 12 2586 | -8/Storage | Destroyed 10 combat bots 2624 | -8/Storage | Discovered exit to Factory (range 16) 2670 | -8/Storage | Core integrity fell below 50% 2716 | -8/Storage | Assisted by bots powering up and referring to "LRC-V3" 2839 | -8/Storage | Used back door to open Recycling access 2839 | -8/Storage | Discovered new exit (range 5) 2851 | -8/Storage | Central database locked down 2859 | -8/Storage | Reached level 13 2922 | -8/Storage | Entered Factory 2922 | -7/Factory | Accompanied by 10 allies 2924 | -7/Factory | Reached level 14 2928 | -7/Factory | Identified exit to Factory 2932 | -7/Factory | Discovered new exit (range 6) 2996 | -7/Factory | Upgraded with Utility slot (x2) 3019 | -7/Factory | Build established: Commander-Sprinter 3086 | -7/Factory | Reached level 15 3215 | -7/Factory | Garrison activated, responded to threat 3415 | -7/Factory | Reached level 16 3427 | -7/Factory | Identified exit to Lower Caves 3442 | -7/Factory | Upgraded with Utility slot (x1) 3455 | -7/Factory | Destroyed 7 combat bots 3658 | -7/Factory | Repaired Broken Cld. Ion Engine? 3722 | -7/Factory | First assault squad dispatched 3754 | -7/Factory | Fabricated Target Analyzer? 3766 | -7/Factory | Fabricated Imp. Core Analyzer (x1) 3798 | -7/Factory | Fabricated Recoil Stabilizer? 3811 | -7/Factory | Fabricated Matter Filter (x2) 3845 | -7/Factory | Build established: Hacker-Sprinter 3932 | -7/Factory | Reached level 17 4021 | -7/Factory | Local fabrication network quarantined 4038 | -7/Factory | Manually triggered Chute Trap 4038 | -7/Factory | Sucked down chute 4038 | -7/Factory | Entered Waste 4038 | -7/Waste | Met up with 1 ally sucked down the chute earlier 4041 | -7/Waste | Spotted C-40 Crusher 4045 | -7/Waste | Spotted C-40 Crusher 4064 | -7/Waste | Spotted C-40 Crusher 4069 | -7/Waste | Spotted C-40 Crusher 4070 | -7/Waste | Spotted C-40 Crusher 4074 | -7/Waste | Spotted C-40 Crusher 4075 | -7/Waste | Discovered new exit (range 13) 4081 | -7/Waste | Entered Factory 4089 | -7/Factory | Discovered exit to Lower Caves (range 15) 4287 | -7/Factory | Destroyed 11 combat bots 4302 | -7/Factory | Discovered exit to Factory (range 13) 4404 | -7/Factory | Repaired Broken Diametric Drive 4534 | -7/Factory | Fabricated Prc. Assault Rifle? 4577 | -7/Factory | Local fabrication network quarantined 4962 | -7/Factory | Entered Lower Caves 4962 | -7/Lower Caves | Accompanied by 1 ally 5069 | -7/Lower Caves | Discovered new exit (range 3) 5128 | -7/Lower Caves | Learned location of Zion (-6) 5142 | -7/Lower Caves | Attracted the attention of an 0b10 base 5172 | -7/Lower Caves | Reached level 18 5341 | -7/Lower Caves | Entered another Lower Caves area 5341 | -7/Lower Caves | Accompanied by 1 ally 5375 | -7/Lower Caves | Discovered exit to Factory (range 11) 5417 | -7/Lower Caves | Attacked by a faux Warlord 5558 | -7/Lower Caves | Learned location of 1 exit from Factory 5617 | -7/Lower Caves | Discovered new exit (range 17) 5702 | -7/Lower Caves | Attracted the attention of an 0b10 checkpoint 5855 | -7/Lower Caves | Entered Data Miner 5855 | -7/Data Miner | Accompanied by 3 allies 5855 | -7/Data Miner | Discovered new exit (range 7) 5860 | -7/Data Miner | Met Data Miner 5866 | -7/Data Miner | Learned location of Section 7 (-2) 5866 | -7/Data Miner | Acquired the access code to Warlord's prototype stash 5871 | -7/Data Miner | Received God Mode back door access code from Data Miner 5875 | -7/Data Miner | Destroyed Data Miner 5877 | -7/Data Miner | Interfaced with the Data Conduit 5905 | -7/Data Miner | Core integrity fell below 50% 5962 | -7/Data Miner | Found Prototype Hackware 5963 | -7/Data Miner | Found Prototype Hackware 5965 | -7/Data Miner | Found Prototype Hackware 5965 | -7/Data Miner | Identified System Mapper 5967 | -7/Data Miner | Identified Ghost Barrier 5968 | -7/Data Miner | Identified Quantum Router 5984 | -7/Data Miner | Entered Proximity Caves 6044 | -6/Proximity Caves | Attracted the attention of an 0b10 base 6044 | -6/Proximity Caves | Learned location of 1 exit from Research 6044 | -6/Proximity Caves | Learned Factory emergency access door positions 6044 | -6/Proximity Caves | Learned Extension garrison access intel 6044 | -6/Proximity Caves | Learned Research stockpile data 6044 | -6/Proximity Caves | Learned Research terminal intel 6044 | -6/Proximity Caves | Learned Extension terminal intel 6068 | -6/Proximity Caves | Reached level 19 6076 | -6/Proximity Caves | Upgraded with Utility slot (x1) 6101 | -6/Proximity Caves | Destroyed 10 combat bots 6129 | -6/Proximity Caves | Attracted the attention of an 0b10 checkpoint 6135 | -6/Proximity Caves | Spotted B-75 Beast 6145 | -6/Proximity Caves | Destroyed B-75 Beast 6194 | -6/Proximity Caves | Entered Factory 6195 | -6/Factory | Identified exit to Lower Caves 6197 | -6/Factory | Loaded intel: 261 machine locations 6259 | -6/Factory | Build established: Wizard-Sprinter 6303 | -6/Factory | Discovered new exit (range 20) 6303 | -6/Factory | Identified exit to Extension 6303 | -6/Factory | Identified exit to Factory 6420 | -6/Factory | Fabricated Imp. Weapon Cycler? 6435 | -6/Factory | Fabricated Imp. Kinecellerator? 6439 | -6/Factory | Intercept squad dispatched 6475 | -6/Factory | Spotted Tracker 6488 | -6/Factory | Local fabrication network quarantined 6488 | -6/Factory | Reached level 20 6488 | -6/Factory | Destroyed Tracker 6514 | -6/Factory | Fabricated Reaction Control System (x1) 6544 | -6/Factory | First assault squad dispatched 6617 | -6/Factory | Spotted Combat Programmer 6644 | -6/Factory | Destroyed Combat Programmer 6724 | -6/Factory | Intercept squad dispatched 6745 | -6/Factory | Spotted Tracker 6748 | -6/Factory | Destroyed Tracker 6748 | -6/Factory | Spotted Tracker 6753 | -6/Factory | Core integrity fell below 50% 6761 | -6/Factory | Destroyed Tracker 6771 | -6/Factory | Found Exp. Phase Shifter 6774 | -6/Factory | Found Exp. Targeting Computer 6783 | -6/Factory | Spotted Combat Programmer 6785 | -6/Factory | Core integrity fell below 20% 6804 | -6/Factory | Destroyed Combat Programmer 6825 | -6/Factory | Spotted Combat Programmer 6837 | -6/Factory | Destroyed Combat Programmer 6915 | -6/Factory | Entered Lower Caves 6923 | -6/Lower Caves | Spotted B-75 Beast 6936 | -6/Lower Caves | Destroyed B-75 Beast 6966 | -6/Lower Caves | Attracted the attention of an 0b10 outpost 6975 | -6/Lower Caves | Learned Factory terminal intel 7002 | -6/Lower Caves | Destroyed 8 combat bots 7087 | -6/Lower Caves | Discovered new exit (range 9) 7152 | -6/Lower Caves | Entered another Lower Caves area 7152 | -6/Lower Caves | Accompanied by 1 ally 7162 | -6/Lower Caves | Discovered exit to Factory (range 10) 7238 | -6/Lower Caves | Attracted the attention of an 0b10 outpost 7250 | -6/Lower Caves | Reached level 21 7290 | -6/Lower Caves | Destroyed 9 combat bots 7303 | -6/Lower Caves | Encountered a Warlord checkpoint 7314 | -6/Lower Caves | Attracted the attention of an 0b10 checkpoint 7324 | -6/Lower Caves | Discovered new exit (range 10) 7368 | -6/Lower Caves | Entered Zion 7368 | -6/Zion | Accompanied by 3 allies 7377 | -6/Zion | Found Exp. Core Analyzer 7381 | -6/Zion | Found Prototype Processor 7383 | -6/Zion | Found Faulty Exp. Target Analyzer 7385 | -6/Zion | Found Faulty Exp. Armor Integrity Analyzer 7394 | -6/Zion | System corruption cleaned by Quarantine Array 7421 | -6/Zion | Learned Factory emergency access door positions 7479 | -6/Zion | Attacked by Zionites 7480 | -6/Zion | Destroyed Imprinter 7500 | -6/Zion | Extracted access codes from Imprinter's data core 7599 | -6/Zion | Spotted RD-733(B) 7658 | -6/Zion | 12-ASH came to Zion's defense 7662 | -6/Zion | Spotted TL-8R6(B) 7670 | -6/Zion | Destroyed 12-ASH 7676 | -6/Zion | Destroyed RD-733(B) 7698 | -6/Zion | Destroyed TL-8R6(B) 7731 | -6/Zion | Discovered new exit (range 12) 7734 | -6/Zion | Entered Proximity Caves 7738 | -5/Proximity Caves | Learned 4 Factory zone layouts 7799 | -5/Proximity Caves | Spotted B-75 Beast 7812 | -5/Proximity Caves | Destroyed B-75 Beast 7907 | -5/Proximity Caves | Destroyed 7 combat bots 7916 | -5/Proximity Caves | Discovered exit to Factory (range 7) 7947 | -5/Proximity Caves | Entered Factory 7949 | -5/Factory | Reached level 22 7950 | -5/Factory | Loaded intel: 252 machine locations 7951 | -5/Factory | Loaded intel: 20 terminal locations 7958 | -5/Factory | Identified exit to Upper Caves 7958 | -5/Factory | Identified exit to Factory 8126 | -5/Factory | Intercept squad dispatched 8138 | -5/Factory | Fabricated Exp. Armor Integrity Analyzer (x1) 8141 | -5/Factory | Spotted Tracker 8147 | -5/Factory | Destroyed Tracker 8151 | -5/Factory | Local fabrication network quarantined 8196 | -5/Factory | Spotted Combat Programmer 8206 | -5/Factory | Fabricated Exp. Target Analyzer (x1) 8216 | -5/Factory | Destroyed Combat Programmer 8234 | -5/Factory | Upgraded with Utility slot (x1) 8304 | -5/Factory | Reached level 23 8327 | -5/Factory | Destroyed 8 combat bots 8423 | -5/Factory | Central database locked down 8447 | -5/Factory | Entered Upper Caves 8449 | -5/Upper Caves | Attracted the attention of an 0b10 checkpoint 8515 | -5/Upper Caves | Encountered a Warlord checkpoint 8516 | -5/Upper Caves | Learned Factory terminal intel 8554 | -5/Upper Caves | Discovered new exit (range 17) 8568 | -5/Upper Caves | Entered another Upper Caves area 8589 | -5/Upper Caves | Discovered exit to Factory (range 6) 8597 | -5/Upper Caves | Encountered a Warlord checkpoint 8621 | -5/Upper Caves | Attracted the attention of an 0b10 checkpoint 8708 | -5/Upper Caves | Discovered new exit (range 11) 8765 | -5/Upper Caves | Entered Warlord 8775 | -5/Warlord | System corruption cleaned by Quarantine Array 8850 | -5/Warlord | Met Warlord 8872 | -5/Warlord | Warlord's base attacked by MAIN.C 8897 | -5/Warlord | Opened Warlord's prototype stash 8911 | -5/Warlord | Learned Factory garrison access intel 8911 | -5/Warlord | Learned Armory garrison access intel 8911 | -5/Warlord | Learned Research repair station intel 8912 | -5/Warlord | Learned 4 Armory zone layouts 8912 | -5/Warlord | Learned 4 Quarantine zone layouts 8912 | -5/Warlord | Learned Armory stockpile data 9011 | -5/Warlord | Opened side exit 9048 | -5/Warlord | Reached level 24 9068 | -5/Warlord | Discovered new exit (range 14) 9070 | -5/Warlord | Upgraded with Utility slot (x1) 9071 | -5/Warlord | Entered Proximity Caves 9097 | -4/Proximity Caves | Learned Research stockpile data 9192 | -4/Proximity Caves | Destroyed 7 combat bots 9208 | -4/Proximity Caves | Discovered exit to Factory (range 7) 9209 | -4/Proximity Caves | Attracted the attention of an 0b10 checkpoint 9257 | -4/Proximity Caves | Entered Factory 9258 | -4/Factory | Loaded intel: 278 machine locations 9259 | -4/Factory | Loaded intel: 20 terminal locations 9259 | -4/Factory | Reached level 25 9260 | -4/Factory | Loaded intel: 3 garrison access locations 9374 | -4/Factory | Intercept squad dispatched 9385 | -4/Factory | Spotted Tracker 9385 | -4/Factory | Spotted Tracker 9389 | -4/Factory | Destroyed Tracker 9395 | -4/Factory | Destroyed Tracker 9416 | -4/Factory | Found Exp. Targeting Computer 9427 | -4/Factory | Spotted Combat Programmer 9431 | -4/Factory | Destroyed Combat Programmer 9438 | -4/Factory | Spotted Combat Programmer 9442 | -4/Factory | Destroyed Combat Programmer 9569 | -4/Factory | Discovered new exit (range 3) 9593 | -4/Factory | Identified exit to Upper Caves 9593 | -4/Factory | Identified exit to Research 9593 | -4/Factory | Reached level 26 9605 | -4/Factory | Destroyed 13 combat bots 9644 | -4/Factory | Intercept squad dispatched 9663 | -4/Factory | Spotted Tracker 9663 | -4/Factory | Spotted Tracker 9663 | -4/Factory | Spotted Tracker 9666 | -4/Factory | Destroyed Tracker 9667 | -4/Factory | Destroyed Tracker 9669 | -4/Factory | Destroyed Tracker 9719 | -4/Factory | Fabricated Adv. Weapon Cycler (x2) 9729 | -4/Factory | Spotted Combat Programmer 9738 | -4/Factory | Spotted Combat Programmer 9738 | -4/Factory | Destroyed Combat Programmer 9738 | -4/Factory | Spotted Combat Programmer 9751 | -4/Factory | Core integrity fell below 50% 9754 | -4/Factory | Destroyed Combat Programmer 9755 | -4/Factory | Destroyed Combat Programmer 9833 | -4/Factory | Spotted B-86 Titan 9838 | -4/Factory | Destroyed B-86 Titan 9883 | -4/Factory | Fabricated Reaction Control System (x1) 9895 | -4/Factory | Intercept squad dispatched 9898 | -4/Factory | Spotted Tracker 9899 | -4/Factory | Entered Upper Caves 9982 | -4/Upper Caves | Destroyed 12 combat bots 10064 | -4/Upper Caves | Discovered new exit (range 10) 10129 | -4/Upper Caves | Entered another Upper Caves area 10129 | -4/Upper Caves | Accompanied by 2 allies 10199 | -4/Upper Caves | Learned location of 1 exit from Research 10249 | -4/Upper Caves | Discovered new exit (range 16) 10321 | -4/Upper Caves | Entered Zhirov 10321 | -4/Zhirov | Accompanied by 2 allies 10321 | -4/Zhirov | Discovered new exit (range 5) 10327 | -4/Zhirov | Met Zhirov 10338 | -4/Zhirov | Zhirov requested help retrieving the SGEMP Prototype 10345 | -4/Zhirov | Found Alien Artifact 10345 | -4/Zhirov | Identified Integrated Dissipator 10345 | -4/Zhirov | Installed Integrated Dissipator, increased core heat dissipation (+2%) 10354 | -4/Zhirov | Found Alien Artifact 10430 | -4/Zhirov | Entered Proximity Caves 10430 | -3/Proximity Caves | Accompanied by 2 allies 10432 | -3/Proximity Caves | Reached level 27 10489 | -3/Proximity Caves | Spotted B-86 Titan 10495 | -3/Proximity Caves | Destroyed B-86 Titan 10599 | -3/Proximity Caves | Discovered exit to Research (range 9) 10600 | -3/Proximity Caves | Destroyed 10 combat bots 10725 | -3/Proximity Caves | Entered Research 10725 | -3/Research | Accompanied by 4 allies 10726 | -3/Research | Identified exit to Testing 10726 | -3/Research | Identified exit to Armory 10727 | -3/Research | Reached level 28 10728 | -3/Research | Loaded intel: 89 machine locations 10729 | -3/Research | Loaded intel: 19 terminal locations 10730 | -3/Research | Loaded intel: 4 repair station locations 10869 | -3/Research | Spotted B-86 Titan 10872 | -3/Research | Reached level 29 10872 | -3/Research | Destroyed B-86 Titan 10911 | -3/Research | Intercept squad dispatched 10949 | -3/Research | Spotted Tracker 10952 | -3/Research | Destroyed Tracker 11009 | -3/Research | Entered Armory 11010 | -3/Armory | Identified exit to Research 11012 | -3/Armory | Loaded intel: 70 machine locations 11088 | -3/Armory | Destroyed 11 combat bots 11116 | -3/Armory | Fabricated Adv. Reaction Control System (x1) 11123 | -3/Armory | Spotted B-86 Titan 11137 | -3/Armory | Destroyed B-86 Titan 11172 | -3/Armory | Fabricated Force Lance? 11305 | -3/Armory | Intercept squad dispatched 11306 | -3/Armory | Spotted Tracker 11306 | -3/Armory | Destroyed Tracker 11312 | -3/Armory | Reached level 30 11347 | -3/Armory | Destroyed 15 combat bots 11486 | -3/Armory | Destroyed 7 combat bots 11509 | -3/Armory | Discovered exit to Research (range 4) 11540 | -3/Armory | Intercept squad dispatched 11541 | -3/Armory | Spotted Tracker 11542 | -3/Armory | Spotted Tracker 11543 | -3/Armory | Destroyed Tracker 11544 | -3/Armory | Crushed by falling debris 11544 | -3/Armory | Core integrity fell below 50% 11546 | -3/Armory | Spotted Combat Programmer 11549 | -3/Armory | Destroyed Combat Programmer 11556 | -3/Armory | Destroyed Tracker 11559 | -3/Armory | Upgraded with Weapon slot (x2) 11575 | -3/Armory | Spotted Combat Programmer 11577 | -3/Armory | Destroyed 11 combat bots 11577 | -3/Armory | Destroyed Combat Programmer 11608 | -3/Armory | Intercept squad dispatched 11608 | -3/Armory | Identified Transdimensional Reconstructor 11608 | -3/Armory | Warped through subspace to slip node 11608 | -3/Armory | Discovered new exit (range 1) 11609 | -3/Armory | Entered Lab 11609 | -3/Lab | Discovered exit to Research (range 9) 11613 | -3/Lab | Hidden lab's door opened automatically 11613 | -3/Lab | Sensor layout match revealed 11613 | -3/Lab | Decrypted terminal 11614 | -3/Lab | Gained access to the hidden lab's interior 11614 | -3/Lab | Decrypted terminal 11616 | -3/Lab | Detected by scanners 11625 | -3/Lab | Reached level 31 11625 | -3/Lab | Decrypted terminal 11625 | -3/Lab | Acquired modification code for an L2 power cell 11631 | -3/Lab | Found Quantum Router 11643 | -3/Lab | Confronted by A5 11650 | -3/Lab | Destroyed A5 11668 | -3/Lab | Found Alien Artifact 11668 | -3/Lab | Identified Core Regenerator 11668 | -3/Lab | Used Core Regenerator, restored core integrity (+0) 11675 | -3/Lab | Found Integrated Dissipator 11675 | -3/Lab | Installed Integrated Dissipator, increased core heat dissipation (+2%) 11684 | -3/Lab | Found Transdimensional Reconstructor 11684 | -3/Lab | Warped through subspace 11688 | -3/Lab | Found Prototype Special Weapon 11688 | -3/Lab | Identified Gui. Remote Datajack 11705 | -3/Lab | Found Prototype Energy Cannon 11705 | -3/Lab | Identified Warp Cannon 11708 | -3/Lab | Found Prototype Energy Cannon 11708 | -3/Lab | Identified Potential Cannon 11710 | -3/Lab | Found Prototype Protection 11710 | -3/Lab | Identified Med. Regenerative Plating 11751 | -3/Lab | Decrypted terminal 11751 | -3/Lab | Decrypted terminal 11758 | -3/Lab | Decrypted terminal 11759 | -3/Lab | Decrypted terminal 11775 | -3/Lab | Entered Research 11775 | -2/Research | Warlord forces began assault on 0b10 11777 | -2/Research | Loaded intel: 114 machine locations 11856 | -2/Research | Identified exit to Quarantine 11856 | -2/Research | Identified exit to Access 11863 | -2/Research | Borebot progress halted 11885 | -2/Research | Research machine network offline 11941 | -2/Research | Borebot progress halted 11946 | -2/Research | Reached level 32 11946 | -2/Research | Met up with Warlord 11986 | -2/Research | Hacked God Mode, triggering a massive explosion 11994 | -2/Research | System corruption reached 10% 11994 | -2/Research | System corruption reached 30% 12031 | -2/Research | Entered Quarantine 12033 | -2/Quarantine | Loaded intel: 75 machine locations 12050 | -2/Quarantine | Found Alien Artifact 12050 | -2/Quarantine | Identified Subatomic Replicator 12117 | -2/Quarantine | Intercept squad dispatched 12123 | -2/Quarantine | Spotted Tracker 12124 | -2/Quarantine | Spotted Tracker 12124 | -2/Quarantine | Destroyed Tracker 12125 | -2/Quarantine | Destroyed Tracker 12155 | -2/Quarantine | Spotted Combat Programmer 12155 | -2/Quarantine | Spotted Combat Programmer 12163 | -2/Quarantine | Destroyed Combat Programmer 12171 | -2/Quarantine | Destroyed Combat Programmer 12183 | -2/Quarantine | Found Alien Impact Weapon 12183 | -2/Quarantine | Identified Core Stripper 12217 | -2/Quarantine | Found Alien Slashing Weapon 12217 | -2/Quarantine | Identified Sigix Broadsword 12263 | -2/Quarantine | Reached level 33 12307 | -2/Quarantine | Discovered exit to Access (range 17) 12311 | -2/Quarantine | Intercept squad dispatched 12311 | -2/Quarantine | Spotted Tracker 12311 | -2/Quarantine | Spotted Tracker 12313 | -2/Quarantine | Spotted Tracker 12313 | -2/Quarantine | Destroyed Tracker 12315 | -2/Quarantine | Destroyed Tracker 12315 | -2/Quarantine | Destroyed Tracker 12318 | -2/Quarantine | Spotted Combat Programmer 12319 | -2/Quarantine | Spotted Combat Programmer 12319 | -2/Quarantine | Destroyed Combat Programmer 12320 | -2/Quarantine | Spotted Combat Programmer 12322 | -2/Quarantine | Destroyed Combat Programmer 12323 | -2/Quarantine | Destroyed Combat Programmer 12416 | -2/Quarantine | Spotted Fortress 12437 | -2/Quarantine | Discovered new exit (range 5) 12438 | -2/Quarantine | Entered Section 7 12439 | -2/Section 7 | Loaded intel: 153 machine locations 12449 | -2/Section 7 | Found Integrated Dissipator 12449 | -2/Section 7 | Installed Integrated Dissipator, increased core heat dissipation (+2%) 12495 | -2/Section 7 | Found Alien Artifact 12495 | -2/Section 7 | Identified Integrity Redistributor 12495 | -2/Section 7 | Used Integrity Redistributor, redistributed integrity from core (-8) 12505 | -2/Section 7 | Spotted S7 Guard 12543 | -2/Section 7 | Destroyed S7 Guard 12552 | -2/Section 7 | Found Alien Artifact 12552 | -2/Section 7 | Identified Integrated Singularity Reactor 12552 | -2/Section 7 | Installed Integrated Singularity Reactor, increased core energy generation (+2%) 12586 | -2/Section 7 | Intercept squad dispatched 12595 | -2/Section 7 | Spotted Tracker 12595 | -2/Section 7 | Destroyed Tracker 12596 | -2/Section 7 | Spotted Tracker 12596 | -2/Section 7 | Destroyed Tracker 12612 | -2/Section 7 | Spotted Combat Programmer 12613 | -2/Section 7 | Spotted Combat Programmer 12614 | -2/Section 7 | Destroyed Combat Programmer 12614 | -2/Section 7 | Destroyed Combat Programmer 12635 | -2/Section 7 | Destroyed 8 combat bots 12691 | -2/Section 7 | Spotted B-90 Cyclops 12700 | -2/Section 7 | Destroyed B-90 Cyclops 12726 | -2/Section 7 | Spotted B-90 Cyclops 12726 | -2/Section 7 | Destroyed B-90 Cyclops 12747 | -2/Section 7 | Destroyed 8 combat bots 12771 | -2/Section 7 | Intercept squad dispatched 12777 | -2/Section 7 | Spotted Tracker 12777 | -2/Section 7 | Spotted Tracker 12787 | -2/Section 7 | Spotted Tracker 12787 | -2/Section 7 | Destroyed Tracker 12787 | -2/Section 7 | Destroyed Tracker 12790 | -2/Section 7 | Destroyed Tracker 12805 | -2/Section 7 | Spotted Combat Programmer 12805 | -2/Section 7 | Spotted Combat Programmer 12809 | -2/Section 7 | Destroyed Combat Programmer 12811 | -2/Section 7 | Destroyed Combat Programmer 12811 | -2/Section 7 | Reached level 34 12813 | -2/Section 7 | Spotted Combat Programmer 12814 | -2/Section 7 | Destroyed Combat Programmer 12835 | -2/Section 7 | Destroyed 8 combat bots 12843 | -2/Section 7 | Spotted Alpha 7 12844 | -2/Section 7 | Spotted Alpha 7 12896 | -2/Section 7 | Destroyed Alpha 7 12897 | -2/Section 7 | Destroyed Alpha 7 12909 | -2/Section 7 | Found Prototype Ballistic Gun 12909 | -2/Section 7 | Identified Multirail 12940 | -2/Section 7 | Spotted B-99 Colossus 12964 | -2/Section 7 | Found Alien Artifact 12964 | -2/Section 7 | Identified LRC Boosters 12964 | -2/Section 7 | Installed LRC Boosters, increased mass support (+10) 12967 | -2/Section 7 | Found Alien Artifact 12967 | -2/Section 7 | Identified LRC Insulator 12967 | -2/Section 7 | Installed LRC Insulator, gained EM resistance (25) 12969 | -2/Section 7 | Used Subatomic Replicator to replicate LRC Boosters 12970 | -2/Section 7 | Found LRC Boosters 12970 | -2/Section 7 | Installed LRC Boosters, increased mass support (+10) 12972 | -2/Section 7 | Installed LRC Boosters, increased mass support (+10) 13005 | -2/Section 7 | Found Alien Artifact 13005 | -2/Section 7 | Identified Integrated Reactor 13005 | -2/Section 7 | Installed Integrated Reactor, increased core energy generation (+2%) 13007 | -2/Section 7 | Found Integrated Reactor 13007 | -2/Section 7 | Installed Integrated Reactor, increased core energy generation (+2%) 13009 | -2/Section 7 | Found Integrated Reactor 13009 | -2/Section 7 | Installed Integrated Reactor, increased core energy generation (+2%) 13055 | -2/Section 7 | Intercept squad dispatched 13065 | -2/Section 7 | Spotted Tracker 13066 | -2/Section 7 | Destroyed Tracker 13067 | -2/Section 7 | Spotted Tracker 13067 | -2/Section 7 | Destroyed Tracker 13067 | -2/Section 7 | Spotted Tracker 13067 | -2/Section 7 | Destroyed Tracker 13067 | -2/Section 7 | Spotted Tracker 13069 | -2/Section 7 | Destroyed Tracker 13095 | -2/Section 7 | Spotted Executioner 13095 | -2/Section 7 | Spotted Executioner 13102 | -2/Section 7 | Destroyed Executioner 13103 | -2/Section 7 | Destroyed Executioner 13120 | -2/Section 7 | Found Alien Artifact 13120 | -2/Section 7 | Identified Terrabomb 13120 | -2/Section 7 | Used Terrabomb 13129 | -2/Section 7 | Found Transdimensional Reconstructor 13137 | -2/Section 7 | Spotted Combat Programmer 13137 | -2/Section 7 | Spotted Combat Programmer 13137 | -2/Section 7 | Spotted Combat Programmer 13140 | -2/Section 7 | Destroyed Combat Programmer 13145 | -2/Section 7 | Destroyed Combat Programmer 13146 | -2/Section 7 | Crushed by falling debris 13146 | -2/Section 7 | Core integrity fell below 50% 13147 | -2/Section 7 | Destroyed Combat Programmer 13184 | -2/Section 7 | Discovered exit to Access (range 5) 13186 | -2/Section 7 | Entered Access 13187 | -1/Access | Loaded intel: 106 machine locations 13207 | -1/Access | Spotted B-99 Colossus 13287 | -1/Access | Spotted B-99 Colossus 13299 | -1/Access | Destroyed B-99 Colossus 13314 | -1/Access | Identified exit to Command 13337 | -1/Access | Intercept squad dispatched 13353 | -1/Access | Reached level 35 13354 | -1/Access | Spotted Tracker 13354 | -1/Access | Spotted Tracker 13354 | -1/Access | Destroyed Tracker 13354 | -1/Access | Destroyed Tracker 13368 | -1/Access | Upgraded with Weapon slot (x2) 13409 | -1/Access | Destroyed 9 combat bots 13454 | -1/Access | Garrison activated, responded to threat 13462 | -1/Access | Spotted Combat Programmer 13463 | -1/Access | Spotted Combat Programmer 13471 | -1/Access | Destroyed Combat Programmer 13472 | -1/Access | Destroyed Combat Programmer 13493 | -1/Access | Identified exit to Surface 13498 | -1/Access | Intercept squad dispatched 13510 | -1/Access | Spotted Tracker 13510 | -1/Access | Destroyed Tracker 13511 | -1/Access | Spotted Tracker 13511 | -1/Access | Destroyed Tracker 13512 | -1/Access | Spotted Tracker 13513 | -1/Access | Destroyed Tracker 13534 | -1/Access | Destroyed 28 combat bots 13561 | -1/Access | Entered Command 13562 | -1/Command | Loaded intel: 61 machine locations 13563 | -1/Command | Reached level 36 13604 | -1/Command | Disengaged cave seal 13615 | -1/Command | Spotted Alpha 7 13617 | -1/Command | Destroyed Alpha 7 13665 | -1/Command | Destroyed 7 combat bots 13679 | -1/Command | Spotted M Guard 13679 | -1/Command | Spotted M Guard 13679 | -1/Command | Spotted Combat Programmer 13682 | -1/Command | Spotted Combat Programmer 13685 | -1/Command | Destroyed Combat Programmer 13687 | -1/Command | Destroyed Combat Programmer 13689 | -1/Command | Destroyed M Guard 13698 | -1/Command | Destroyed M Guard 13698 | -1/Command | Destroyed all MAIN.C guards 13837 | -1/Command | First assault squad dispatched 13868 | -1/Command | Reached level 37 13899 | -1/Command | Met MAIN.C 13920 | -1/Command | Destroyed MAIN.C Shell 13920 | -1/Command | MAIN.C activated Command garrisons 13925 | -1/Command | Destroyed MAIN.C 13987 | -1/Command | Warped through subspace to slip node 13987 | -1/Command | Discovered new exit (range 5) 13991 | -1/Command | Entered Access_0 13992 | -1/Access_0 | Loaded intel: 51 machine locations 13992 | -1/Access_0 | Met Architect 13993 | -1/Access_0 | Reached level 38 13993 | -1/Access_0 | Destroyed A8 13996 | -1/Access_0 | Architect warped through subspace 14021 | -1/Access_0 | Spotted Enhanced Programmer 14022 | -1/Access_0 | Destroyed Enhanced Programmer 14026 | -1/Access_0 | Spotted Enhanced Programmer 14027 | -1/Access_0 | Architect warped through subspace 14027 | -1/Access_0 | Destroyed Enhanced Programmer 14036 | -1/Access_0 | Found Prototype Device 14036 | -1/Access_0 | Identified Exp. Focal Shield 14061 | -1/Access_0 | Architect warped through subspace 14061 | -1/Access_0 | Subspace Access Node disabled 14091 | -1/Access_0 | Architect warped through subspace 14103 | -1/Access_0 | A6 warped into view 14106 | -1/Access_0 | Destroyed A6 14113 | -1/Access_0 | Architect warped through subspace 14137 | -1/Access_0 | Architect warped through subspace 14169 | -1/Access_0 | Spotted Enhanced Programmer 14169 | -1/Access_0 | Spotted Enhanced Programmer 14170 | -1/Access_0 | Spotted Enhanced Programmer 14170 | -1/Access_0 | Destroyed Enhanced Programmer 14172 | -1/Access_0 | Destroyed Enhanced Programmer 14177 | -1/Access_0 | Destroyed Enhanced Programmer 14183 | -1/Access_0 | Architect warped through subspace 14190 | -1/Access_0 | Destroyed Enhanced Programmer 14196 | -1/Access_0 | Destroyed A2 14201 | -1/Access_0 | Extracted Singularity Gate Test 138-C access codes from A2's data core 14204 | -1/Access_0 | Found Prototype Device 14204 | -1/Access_0 | Identified Desublimator 14219 | -1/Access_0 | Destroyed 12 combat bots 14224 | -1/Access_0 | Found Exp. Weapon Cycler 14232 | -1/Access_0 | Architect warped through subspace 14244 | -1/Access_0 | Spotted Enhanced Programmer 14245 | -1/Access_0 | Destroyed Enhanced Programmer 14261 | -1/Access_0 | Spotted Enhanced Programmer 14261 | -1/Access_0 | Spotted Enhanced Programmer 14261 | -1/Access_0 | Destroyed Enhanced Programmer 14265 | -1/Access_0 | Destroyed Enhanced Programmer 14318 | -1/Access_0 | Architect warped through subspace 14367 | -1/Access_0 | Found Alien Artifact 14367 | -1/Access_0 | Identified Core Expander 14367 | -1/Access_0 | Installed Core Expander, added new Utility slot 14373 | -1/Access_0 | Architect warped through subspace 14400 | -1/Access_0 | Spotted Enhanced Programmer 14403 | -1/Access_0 | Destroyed Enhanced Programmer 14407 | -1/Access_0 | Architect warped through subspace 14411 | -1/Access_0 | Subspace Access Node disabled 14416 | -1/Access_0 | A4 warped into view 14417 | -1/Access_0 | Destroyed A4 14438 | -1/Access_0 | Architect warped through subspace 14449 | -1/Access_0 | Architect warped through subspace 14454 | -1/Access_0 | Destroyed 8 combat bots 14464 | -1/Access_0 | Build established: Hacker-Sprinter 14464 | -1/Access_0 | Architect warped through subspace 14469 | -1/Access_0 | Subspace Access Node disabled 14472 | -1/Access_0 | Architect warped through subspace 14476 | -1/Access_0 | Subspace Access Node disabled 14480 | -1/Access_0 | Destroyed Architect 14480 | -1/Access_0 | Extracted unknown sensor trigger ID from Architect's data core 14481 | -1/Access_0 | Architect triggered a singularity event 14484 | -1/Access_0 | Found Alien Artifact 14484 | -1/Access_0 | Identified Hpw. Transdimensional Reconstructor 14484 | -1/Access_0 | Warped through subspace to slip node 14484 | -1/Access_0 | Discovered exit to Surface (range 8) 14486 | *** | Escaped singularity! Last Messages --------------- 14480_ Destroyed Cld. Linear Gravjet. 14480_ Architect: "If I can't win, no one wins!" 14480_ Architect destroyed. 14480_ Acquired data core, extracted unknown sensor trigger ID. 14481_ A0_COM: Initiating irreversible singularity event. Goodbye. 14481_ Used Protomatter to restore core integrity (+42) 14482_ A0_COM: 10. 14482_ Dropped Protomatter-90. 14483_ A0_COM: 9. 14484_ A0_COM: 8. 14484_ Acquired Alien Artifact. 14484_ Identified Hpw. Transdimensional Reconstructor. 14484_ Warped through subspace, drawn to slip node. 14484_ EXIT=FOUND: SURFACE 14485_ A0_COM: 7. 14486_ A0_COM: 6. [Achievement: Collector] [Achievement: Punisher] [Achievement: Planet Killer] [Achievement: Data Run] Map ----- +----------------------------------------------------+ | | | | | | | | | | | | | | | | | | | | | | | | | | | | | | | | | ?????????????????????????????????????????????????? | | ?????????????????????????????????????????????????? | | ?????????????????????????????????????????????????? | | ?????????????????????????????????????????????????? | | ?????????????????????????????????????????????????? | | ?????????????????????????????????????????????????? | | ????????????????????????###??????????????????????? | | ???????????????????????## ##?????????????????????? | | ???????????????????????# #?????????????????????? | | ???????????????????????# @ #?????????????????????? | | ??????????????????????## #?????????????????????? | | ??????????????????????# #?????????????????????? | | ??????????????????????# ##?????????????????????? | | ??????????????????????## #?????????????????????? | | ??????????????????????# #?????????????????????? | | ??????????????????????# ##?????????????????????? | | ??????????????????????# < #?????????????????????? | | ??????????????????????# ##?????????????????????? | | ??????????????????????## #??????????????????????? | | ???????????????????????####??????????????????????? | | ?????????????????????????????????????????????????? | | ?????????????????????????????????????????????????? | | ?????????????????????????????????????????????????? | | ?????????????????????????????????????????????????? | | ?????????????????????????????????????????????????? | | ?????????????????????????????????????????????????? | | ?????????????????????????????????????????????????? | | ?????????????????????????????????????????????????? | | ?????????????????????????????????????????????????? | | ?????????????????????????????????????????????????? | | ?????????????????????????????????????????????????? | | ?????????????????????????????????????????????????? | | ?????????????????????????????????????????????????? | | ?????????????????????????????????????????????????? | +----------------------------------------------------+ Best States ------------- Heat Dissipation 205 Energy Generation 82 Energy Capacity 490 Matter Stores 800 Matter Capacity 800 Sight Range 20 Terrain Scan Density 10 Resistance: EM 25 Weapon Cycling 30 Phase Shifting 20 Evasion (%) 100 Targeting Accuracy 38 Target Analysis 12 Core Analysis 15 Armor Integrity Analysis 90 Recoil Reduction 6 Matter Filtering 50 Kinecelleration 40 Offensive Hacking 30 Defensive Hacking 60 Item Schematics ----------------- Gatling Laser | -8/Storage | Hacked Hacking Suite | -8/Storage | Hacked Target Analyzer | -8/Storage | Hacked Hvy. Flak Cannon | -7/Factory | Hacked Matter Filter | -7/Factory | Hacked Recoil Stabilizer | -7/Factory | Hacked Imp. Core Analyzer | -7/Factory | Hacked Prc. Assault Rifle | -7/Factory | Scanalyzed Cld. Deuterium Engine | -7/Factory | Scanalyzed Adv. Hacking Suite | -7/Factory | Scanalyzed Diametric Drive | -7/Factory | Scanalyzed Combat Drone Bay | -7/Data Miner | Free Lgt. Regenerative Plating | -7/Data Miner | Free Exp. Sensor Array | -7/Data Miner | Free Exp. Terrain Scanner | -7/Data Miner | Free Exp. ECM Suite | -7/Data Miner | Free Imp. Weapon Cycler | -6/Factory | Hacked Imp. Kinecellerator | -6/Factory | Hacked Recoil Nullifier | -6/Factory | Hacked Cld. Cesium-ion Thruster | -6/Factory | Hacked Exp. Targeting Computer | -6/Factory | Hacked Energy Well | -6/Factory | Hacked Mass Driver | -6/Factory | Hacked Antimatter Reactor | -6/Factory | Hacked Reaction Control System | -6/Factory | Hacked Adv. Target Analyzer | -6/Factory | Hacked Riot Gun | -6/Zion | Free Arc Thrower | -6/Zion | Free Barrage Gun | -6/Zion | Free Battle Cannon | -6/Zion | Free Ripper | -6/Zion | Free Force Lance | -5/Factory | Hacked Com. HERF Cannon | -5/Factory | Hacked Exp. Armor Integrity Analyzer | -5/Factory | Scanalyzed Exp. Target Analyzer | -5/Factory | Scanalyzed Adv. Core Analyzer | -5/Factory | Hacked Adv. Weapon Cycler | -4/Factory | Hacked Prc. Matter Filter | -4/Upper Caves | Hacked Assault Drone Bay | -4/Zhirov | Free Exp. Heat Sink | -4/Zhirov | Free Exp. Optical Array | -4/Zhirov | Free Imp. Arc Thrower | -4/Zhirov | Free Adv. Reaction Control System | -3/Research | Hacked Adv. Force Field | -3/Research | Hacked Adv. Kinecellerator | -3/Armory | Hacked Robot Schematics ------------------ G-34 Mercenary | -8/Storage | Hacked G-47 Trooper | -8/Storage | Hacked S-27 Virus | -7/Factory | Hacked G-50 Soldier | -7/Data Miner | Free L-41 Fighter | -7/Data Miner | Free X-72 Disruptor | -7/Data Miner | Free I-36 Angel | -7/Data Miner | Free Fabricated ------------ Target Analyzer | x2 | -7/Factory Imp. Core Analyzer | x1 | -7/Factory Recoil Stabilizer | x2 | -7/Factory Matter Filter | x2 | -7/Factory Prc. Assault Rifle | x1 | -7/Factory Imp. Weapon Cycler | x2 | -6/Factory Imp. Kinecellerator | x1 | -6/Factory Reaction Control System | x1 | -6/Factory Exp. Armor Integrity Analyzer | x1 | -5/Factory Exp. Target Analyzer | x1 | -5/Factory Adv. Weapon Cycler | x2 | -4/Factory Reaction Control System | x1 | -4/Factory Adv. Reaction Control System | x1 | -3/Armory Force Lance | x1 | -3/Armory Alien Tech Used ----------------- Integrated Dissipator Transdimensional Reconstructor Core Regenerator Subatomic Replicator Core Stripper Sigix Broadsword Integrity Redistributor Integrated Singularity Reactor LRC Boosters LRC Insulator Integrated Reactor Terrabomb Core Expander High-powered Transdimensional Reconstructor Achievements -------------- Anyone Home? Collector Data Run Decrypted! Executioner Gun Specialist Killing Spree Monster Planet Killer Punisher Challenges ------------ None RPGLIKE | -11 -10 -10 -9 -9 -8 -8 -7 -7 -7 -7 -7 -7 -6 -6 -6 -6 -6 -5 -5 -5 -5 -5 -4 -4 -4 -4 -4 -3 -3 -3 -3 -2 -2 -2 -1 -1 -1 --------- Run | Scr Mat Min Mat Min Mat Sto Fac Was Fac Low Low Dat Pro Fac Low Low Zio Pro Fac Upp Upp War Pro Fac Upp Upp Zhi Pro Res Arm Lab Res Qua Sec Acc Com Ac0 Levels Raised 37 | . 1 . 3 1 4 3 4 . . 1 . . 1 1 . 1 . . 2 . . 1 . 2 . . . 1 2 1 1 1 1 1 1 2 1 XP Earned 59907 | 3000 1768 1100 4318 1234 6266 3358 6059 46 1151 278 145 374 1177 2021 468 430 105 1161 1716 347 534 451 1065 2323 479 308 170 1539 2023 1605 1355 1861 1047 1498 2559 3069 1499 XP Spent 58400 | . 4000 . 4910 750 6700 . 9100 . 900 . . . 3200 . . . . . 3500 . . 3800 . 2000 . . . . . 5200 750 . . . 8560 1000 4030 Upgrades 74 | . 9 . 12 2 5 . 5 . 3 . . . 1 . . . . . 1 . . 1 . 3 . . . . . 4 1 . . . 13 1 13 Power Slot 1 | . . . 1 . . . . . . . . . . . . . . . . . . . . . . . . . . . . . . . . . . Propulsion Slot 1 | . 1 . . . . . . . . . . . . . . . . . . . . . . . . . . . . . . . . . . . . Utility Slot 12 | . . . 3 . 3 . 3 . . . . . 1 . . . . . 1 . . 1 . . . . . . . . . . . . . . . Weapon Slot 7 | . 1 . 1 . 1 . . . . . . . . . . . . . . . . . . . . . . . . 2 . . . . 2 . . Heat Dissipation 20 | . . . 3 . . . . . . . . . . . . . . . . . . . . . . . . . . . . . . . 4 . 13 Energy Generation 1 | . . . . . . . . . . . . . . . . . . . . . . . . 1 . . . . . . . . . . . . . Mass Support 11 | . . . 4 . 1 . 2 . . . . . . . . . . . . . . . . 2 . . . . . 2 . . . . . . . Inventory Capacity 4 | . . . . 2 . . . . . . . . . . . . . . . . . . . . . . . . . . 1 . . . . 1 . Sight Range 4 | . . . . . . . . . 3 . . . . . . . . . . . . . . . . . . . . . . . . . 1 . . Ranged Accuracy 2 | . 2 . . . . . . . . . . . . . . . . . . . . . . . . . . . . . . . . . . . . Hack Attack % 2 | . 2 . . . . . . . . . . . . . . . . . . . . . . . . . . . . . . . . . . . . Hack Defense % 3 | . 3 . . . . . . . . . . . . . . . . . . . . . . . . . . . . . . . . . . . . KI Damage % 3 | . . . . . . . . . . . . . . . . . . . . . . . . . . . . . . . . . . . 3 . . TH Damage % 3 | . . . . . . . . . . . . . . . . . . . . . . . . . . . . . . . . . . . 3 . . Protomatter Created 17167 | . 195 79 337 138 648 338 895 . 732 212 223 293 334 916 406 276 140 121 619 52 365 39 208 1222 134 233 149 586 430 1788 71 . 455 1265 1194 523 1551 Integrity Restored 18212 | . 377 68 928 101 864 802 1367 . 938 132 74 515 472 1852 279 121 200 362 744 97 491 28 195 1430 137 123 . 108 228 1046 118 35 504 1407 741 250 1078 Core 14205 | . 302 68 847 78 662 689 992 . 754 109 59 416 375 1455 161 101 168 356 545 80 399 22 143 1066 117 104 . 84 168 836 113 26 271 1064 524 198 853 Parts 4007 | . 75 . 81 23 202 113 375 . 184 23 15 99 97 397 118 20 32 6 199 17 92 6 52 364 20 19 . 24 60 210 5 9 233 343 217 52 225 Protomatter Decayed 15227 | . 55 71 133 104 277 59 536 . 345 157 144 61 49 376 281 234 215 . 178 19 151 181 97 601 88 191 243 549 451 1201 . 990 375 725 788 4376 926 Game ------ Seed RocketRagnarokDevice Manual? 0 Play Time 05:05:22 Cumulative 165.3 hours Start 2020.01.22 @ 15:20:56 End 2020.01.31 @ 01:11:02 Sessions 21 Manual Loads 0 Difficulty Rogue Special Mode Winter2019/RPGLIKE Game No. 143 Rogue 143 Adventurer 0 Explorer 0 Win Type 6 Total 15 Types 11/0/1/2/0/0/1 Lore% 81 Gallery% 75 Achievement% 72 Wizard Run 0 Options --------- ASCII 0 Keyboard 0 Movement Numpad Keybinds 0 Fullscreen 2 Font 18/SmallcapsGlow Map View 76x50 Tactical HUD 1 Map Filters NONE Filters NONE Steam X RUN: 0654adf6-a187-4301-ade3-4e07a359e942